Workbook

Sheet 学习成绩
A1: 序号 | B1: 姓名 | C1: 学号 | D1: 智育综测 | E1: 智育加分 | F1: 智育总分 | G1: 智育分 | H1: 德育综测 | I1: 德育加分 | J1: 德育总分 | K1: 德育分 | L1: 文体综测 | M1: 文体加分 | N1: 文体总分 | O1: 文体活动分 | P1: 总成绩
A2: 1 | B2: 孔肖阳 | C2: 2022310207 | D2: 98.99 | E2: 81.90 | F2: =D2+E2 -> 180.90 | G2: =(F2/$F$53)*100 -> 84.04932022 | H2: 105.46 | I2: 3.00 | J2: =H2+I2 -> 108.46 | K2: =(J2/$J$14)*100 -> 77.65897332 | L2: 100 | M2: 0 | N2: =L2+M2 -> 100 | O2: =(N2/$N$16)*100 -> 76.1614623 | P2: =G2*0.7+K2*0.2+O2*0.1 -> 81.98246505
A3: 3 | B3: 冯仕杰 | C3: 2022310215 | D3: 67.45 | E3: 0.00 | F3: =D3+E3 -> 67.45 | G3: =(F3/$F$53)*100 -> 31.33884539 | H3: 96.43 | I3: 0.00 | J3: =H3+I3 -> 96.43 | K3: =(J3/$J$14)*100 -> 69.04402863 | L3: 100 | M3: 0 | N3: =L3+M3 -> 100 | O3: =(N3/$N$16)*100 -> 76.1614623 | P3: =G3*0.7+K3*0.2+O3*0.1 -> 43.36214373
A4: 4 | B4: 殷梦凡 | C4: 2022310223 | D4: 101.49 | E4: 29.41 | F4: 130.90 | G4: 60.82102239 | H4: 103.56 | I4: 4.00 | J4: 107.56 | K4: 77.01458736 | L4: 100 | M4: 0 | N4: 100 | O4: 76.1614623 | P4: 65.59377938
A5: 5 | B5: 薛其州 | C5: 2022310229 | D5: 83.18 | E5: 0.00 | F5: 83.18 | G5: 38.64737078 | H5: 96.46 | I5: 0.00 | J5: 96.46 | K5: 69.06716044 | L5: 100 | M5: 0 | N5: 100 | O5: 76.1614623 | P5: 48.48273787
A6: 6 | B6: 李硕凡 | C6: 2022310234 | D6: 212.91 | E6: 0.00 | F6: 212.91 | G6: 98.92063569 | H6: 99.39 | I6: 0.00 | J6: 99.39 | K6: 71.15990025 | L6: 100 | M6: 0 | N6: 100 | O6: 76.1614623 | P6: 91.09257126
A7: 7 | B7: 谢泽睿 | C7: 2022310235 | D7: 82.80 | E7: 1.25 | F7: 84.05 | G7: 39.05352904 | H7: 96.42 | I7: 0.00 | J7: 96.42 | K7: 69.03631803 | L7: 100 | M7: 0 | N7: 100 | O7: 76.1614623 | P7: 48.76088016
A8: 8 | B8: 曹越 | C8: 2022310245 | D8: 89.43 | E8: 0.00 | F8: 89.43 | G8: 41.54894365 | H8: 102.30 | I8: 0.00 | J8: 102.30 | K8: 73.24740786 | L8: 100 | M8: 0 | N8: 100 | O8: 76.1614623 | P8: 51.34988835
A9: 9 | B9: 李鹏飞 | C9: 2022310246 | D9: 84.07 | E9: 0.00 | F9: 84.07 | G9: 39.06088557 | H9: 96.35 | I9: 0.00 | J9: 96.35 | K9: 68.98234382 | L9: 100 | M9: 0 | N9: 100 | O9: 76.1614623 | P9: 48.7552349
A10: 11 | B10: 修浩 | C10: 2022310248 | D10: 87.80 | E10: 0.00 | F10: 87.80 | G10: 40.79393069 | H10: 96.43 | I10: 0.00 | J10: 96.43 | K10: 69.04402863 | L10: 100 | M10: 0 | N10: 100 | O10: 76.1614623 | P10: 49.98070344
A11: 12 | B11: 李东泽 | C11: 2022310208 | D11: 126.58 | E11: 40.43 | F11: 167.01 | G11: 77.5965255 | H11: 105.29 | I11: 13.00 | J11: 118.29 | K11: 84.69544777 | L11: 100 | M11: 0 | N11: 100 | O11: 76.1614623 | P11: 78.87280364
A12: 13 | B12: 黄可儿 | C12: 2022310212 | D12: 83.91 | E12: 18.75 | F12: 102.66 | G12: 47.69805507 | H12: 104.56 | I12: 3.00 | J12: 107.56 | K12: 77.01238433 | L12: 100 | M12: 0 | N12: 100 | O12: 76.1614623 | P12: 56.40726164
A13: 14 | B13: 吕明珠 | C13: 2022310213 | D13: 107.90 | E13: 11.50 | F13: 119.40 | G13: 55.47602875 | H13: 105.83 | I13: 4.60 | J13: 110.43 | K13: 79.06340427 | L13: 100 | M13: 0 | N13: 100 | O13: 76.1614623 | P13: 62.26204721
A14: 15 | B14: 包若凝 | C14: 2022310214 | D14: 95.61 | E14: 24.50 | F14: 120.11 | G14: 55.80420772 | H14: 129.67 | I14: 10.00 | J14: 139.67 | K14: 100 | L14: 112 | M14: 0 | N14: 112 | O14: 85.30083778 | P14: 67.59302918
A15: 16 | B15: 柳楠 | C15: 2022310220 | D15: 105.20 | E15: 39.89 | F15: 145.09 | G15: 67.41187754 | H15: 102.34 | I15: 3.00 | J15: 105.34 | K15: 75.41849289 | L15: 100 | M15: 0 | N15: 100 | O15: 76.1614623 | P15: 69.88815909
A16: 17 | B16: 徐伟杰 | C16: 2022310228 | D16: 86.30 | E16: 0.00 | F16: 86.30 | G16: 40.09699566 | H16: 118.83 | I16: 6.60 | J16: 125.43 | K16: 89.80317038 | L16: 115.3 | M16: 16 | N16: 131.3 | O16: 100 | P16: 56.02853104
A17: 18 | B17: 王鑫 | C17: 2022310240 | D17: 122.60 | E17: 0.00 | F17: 122.60 | G17: 56.96282349 | H17: 112.40 | I17: 6.60 | J17: 119.00 | K17: 85.20214443 | L17: 114 | M17: 7 | N17: 121 | O17: 92.15536938 | P17: 66.12994227
A18: 19 | B18: 许关欣 | C18: 2022310241 | D18: 114.53 | E18: 0.75 | F18: 115.28 | G18: 53.5631744 | H18: 101.51 | I18: 0.00 | J18: 101.51 | K18: 72.67792488 | L18: 100 | M18: 0 | N18: 100 | O18: 76.1614623 | P18: 59.64595328
A19: 20 | B19: 李之辉 | C19: 2022310237 | D19: 109.55 | E19: 15.75 | F19: 125.30 | G19: 58.21730656 | H19: 96.28 | I19: 0.00 | J19: 96.28 | K19: 68.93608022 | L19: 100 | M19: 0 | N19: 100 | O19: 76.1614623 | P19: 62.15547686
A20: 21 | B20: 刘玉佩 | C20: 2022310238 | D20: 97.46 | E20: 3.00 | F20: 100.46 | G20: 46.67606238 | H20: 96.56 | I20: 0.00 | J20: 96.56 | K20: 69.13655585 | L20: 100 | M20: 0 | N20: 100 | O20: 76.1614623 | P20: 54.11670107
A21: 22 | B21: 黄萌 | C21: 2022310243 | D21: 88.00 | E21: 0.00 | F21: 88.00 | G21: 40.88685536 | H21: 97.05 | I21: 0.00 | J21: 97.05 | K21: 69.48904048 | L21: 100 | M21: 0 | N21: 100 | O21: 76.1614623 | P21: 50.13475308
A22: 23 | B22: 陈冬冬 | C22: 2022310251 | D22: 181.43 | E22: 28.95 | F22: 210.38 | G22: 97.74647922 | H22: 108.54 | I22: 13.00 | J22: 121.54 | K22: 87.02074482 | L22: 100 | M22: 0 | N22: 100 | O22: 76.1614623 | P22: 93.44283065
A23: 24 | B23: 郑蓉蓉 | C23: 2022310210 | D23: 110.25 | E23: 25.00 | F23: 135.25 | G23: 62.84030895 | H23: 118.74 | I23: 16.60 | J23: 135.34 | K23: 96.90132964 | L23: 100 | M23: 0 | N23: 100 | O23: 76.1614623 | P23: 70.98462842
A24: 25 | B24: 于洋 | C24: 2022310211 | D24: 93.17 | E24: 0.00 | F24: 93.17 | G24: 43.28740937 | H24: 108.60 | I24: 4.00 | J24: 112.60 | K24: 80.62314877 | L24: 100 | M24: 0 | N24: 100 | O24: 76.1614623 | P24: 54.04196254
A25: 26 | B25: 王智远 | C25: 2022310216 | D25: 165.62 | E25: 15.43 | F25: 181.04 | G25: 84.11737674 | H25: 106.37 | I25: 16.00 | J25: 122.37 | K25: 87.61335961 | L25: 100 | M25: 0 | N25: 100 | O25: 76.1614623 | P25: 84.02098187
A26: 27 | B26: 李瑞 | C26: 2022310217 | D26: 81.45 | E26: 0.00 | F26: 81.45 | G26: 37.84129976 | H26: 103.50 | I26: 0.00 | J26: 103.50 | K26: 74.10218309 | L26: 100 | M26: 0 | N26: 100 | O26: 76.1614623 | P26: 48.92549268
A27: 28 | B27: 熊东 | C27: 2022310218 | D27: 89.77 | E27: 0.00 | F27: 89.77 | G27: 41.70768996 | H27: 96.37 | I27: 0.00 | J27: 96.37 | K27: 68.99776503 | L27: 100 | M27: 0 | N27: 100 | O27: 76.1614623 | P27: 50.61108221
A28: 29 | B28: 赵飞龙 | C28: 2022310224 | D28: 86.35 | E28: 0.00 | F28: 86.35 | G28: 40.12022682 | H28: 97.66 | I28: 0.00 | J28: 97.66 | K28: 69.9241387 | L28: 100 | M28: 0 | N28: 100 | O28: 76.1614623 | P28: 49.68513275
A29: 30 | B29: 吴昊峰 | C29: 2022310227 | D29: 94.02 | E29: 17.78 | F29: 111.80 | G29: 51.94282622 | H29: 96.40 | I29: 3.00 | J29: 99.40 | K29: 71.16885005 | L29: 100 | M29: 0 | N29: 100 | O29: 76.1614623 | P29: 58.20989459
A30: 31 | B30: 刘璐 | C30: 2022310230 | D30: 88.46 | E30: 0.00 | F30: 88.46 | G30: 41.09979427 | H30: 96.53 | I30: 0.00 | J30: 96.53 | K30: 69.11342405 | L30: 100 | M30: 0 | N30: 100 | O30: 76.1614623 | P30: 50.20868703
A31: 32 | B31: 陈靖 | C31: 2022310231 | D31: 93.21 | E31: 0.00 | F31: 93.21 | G31: 43.30676868 | H31: 96.37 | I31: 0.00 | J31: 96.37 | K31: 68.99776503 | L31: 100 | M31: 0 | N31: 100 | O31: 76.1614623 | P31: 51.73043731
A32: 33 | B32: 夏添 | C32: 2022310233 | D32: 94.26 | E32: 0.00 | F32: 94.26 | G32: 43.79462322 | H32: 98.53 | I32: 3.00 | J32: 101.53 | K32: 72.69224457 | L32: 100 | M32: 0 | N32: 100 | O32: 76.1614623 | P32: 52.8108314
A33: 34 | B33: 李晓涵 | C33: 2022310232 | D33: 89.83 | E33: 0.00 | F33: 89.83 | G33: 41.73537684 | H33: 96.41 | I33: 0.00 | J33: 96.41 | K33: 69.02860743 | L33: 100 | M33: 0 | N33: 100 | O33: 76.1614623 | P33: 50.63663151
A34: 35 | B34: 谢浩东 | C34: 2022310244 | D34: 110.56 | E34: 33.00 | F34: 143.56 | G34: 66.70287779 | H34: 112.57 | I34: 5.00 | J34: 117.57 | K34: 84.179939 | L34: 100 | M34: 0 | N34: 100 | O34: 76.1614623 | P34: 71.14414848
A35: 36 | B35: 于春晖 | C35: 2022310249 | D35: 129.92 | E35: 46.51 | F35: 176.43 | G35: 81.97117565 | H35: 121.38 | I35: 10.00 | J35: 131.38 | K35: 94.06492987 | L35: 100 | M35: 0 | N35: 100 | O35: 76.1614623 | P35: 83.80895516
A36: 37 | B36: 张浩楠 | C36: 2022310250 | D36: 107.40 | E36: 29.07 | F36: 136.47 | G36: 63.40761407 | H36: 103.50 | I36: 3.00 | J36: 106.50 | K36: 76.25013631 | L36: 100 | M36: 0 | N36: 100 | O36: 76.1614623 | P36: 67.25150334
A37: 38 | B37: 陈霖 | C37: 2022310201 | D37: 98.28 | E37: 0.00 | F37: 98.28 | G37: 45.66318347 | H37: 99.42 | I37: 0.00 | J37: 99.42 | K37: 71.18427125 | L37: 100 | M37: 0 | N37: 100 | O37: 76.1614623 | P37: 53.81722891
A38: 39 | B38: 刘莎莎 | C38: 2022310202 | D38: 93.80 | E38: 0.00 | F38: 93.80 | G38: 43.58167083 | H38: 96.39 | I38: 0.00 | J38: 96.39 | K38: 69.01318623 | L38: 100 | M38: 0 | N38: 100 | O38: 76.1614623 | P38: 51.92595306
A39: 40 | B39: 张瑞 | C39: 2022310203 | D39: 89.13 | E39: 0.00 | F39: 89.13 | G39: 41.40955664 | H39: 99.34 | I39: 0.00 | J39: 99.34 | K39: 71.12258644 | L39: 103.33 | M39: 0 | N39: 103.33 | O39: 78.69763899 | P39: 51.08097084
A40: 41 | B40: 张世源 | C40: 2022310219 | D40: 89.57 | E40: 0.00 | F40: 89.57 | G40: 41.61631403 | H40: 99.42 | I40: 0.00 | J40: 99.42 | K40: 71.18427125 | L40: 100 | M40: 0 | N40: 100 | O40: 76.1614623 | P40: 50.9844203
A41: 42 | B41: 姜梁妍 | C41: 2022310239 | D41: 94.30 | E41: 1.00 | F41: 95.30 | G41: 44.27860586 | H41: 100.40 | I41: 0.00 | J41: 100.40 | K41: 71.88483446 | L41: 100 | M41: 0 | N41: 100 | O41: 76.1614623 | P41: 52.98813723
A42: 43 | B42: 刘申宁 | C42: 2022310242 | D42: 90.24 | E42: 0.00 | F42: 90.24 | G42: 41.92728115 | H42: 99.51 | I42: 0.00 | J42: 99.51 | K42: 71.24595606 | L42: 100 | M42: 0 | N42: 100 | O42: 76.1614623 | P42: 51.21443425
A43: 44 | B43: 杨若宸 | C43: 2022310253 | D43: 92.80 | E43: 0.00 | F43: 92.80 | G43: 43.11727678 | H43: 115.96 | I43: 0.00 | J43: 115.96 | K43: 83.02885637 | L43: 100 | M43: 0 | N43: 100 | O43: 76.1614623 | P43: 54.40401125
A44: 45 | B44: 蔡进 | C44: 2022310204 | D44: 153.18 | E44: 28.68 | F44: 181.85 | G44: 84.49249737 | H44: 101.38 | I44: 0.00 | J44: 101.38 | K44: 72.58539766 | L44: 100 | M44: 0 | N44: 100 | O44: 76.1614623 | P44: 81.27797392
A45: 46 | B45: 陈欢 | C45: 2022310205 | D45: 89.20 | E45: 0.00 | F45: 89.20 | G45: 41.44440339 | H45: 96.41 | I45: 0.00 | J45: 96.41 | K45: 69.02860743 | L45: 100 | M45: 0 | N45: 100 | O45: 76.1614623 | P45: 50.43295009
A46: 47 | B46: 王明龙 | C46: 2022310221 | D46: 104.51 | E46: 83.44 | F46: 187.94 | G46: 87.32247516 | H46: 96.35 | I46: 0.00 | J46: 96.35 | K46: 68.98234382 | L46: 100 | M46: 0 | N46: 100 | O46: 76.1614623 | P46: 82.53834761
A47: 48 | B47: 卜禹豪 | C47: 2022310236 | D47: 87.50 | E47: 0.00 | F47: 87.50 | G47: 40.65454368 | H47: 96.97 | I47: 0.00 | J47: 96.97 | K47: 69.42735567 | L47: 100 | M47: 0 | N47: 100 | O47: 76.1614623 | P47: 49.95979794
A48: 49 | B48: 李建 | C48: 2022310222 | D48: 117.45 | E48: 8.91 | F48: 126.36 | G48: 58.70903139 | H48: 96.46 | I48: 0.00 | J48: 96.46 | K48: 69.06716044 | L48: 100 | M48: 0 | N48: 100 | O48: 76.1614623 | P48: 62.52590029
A49: 50 | B49: 南睿 | C49: 2022310225 | D49: 84.50 | E49: 0.00 | F49: 84.50 | G49: 39.26067362 | H49: 96.39 | I49: 0.00 | J49: 96.39 | K49: 69.01318623 | L49: 100 | M49: 0 | N49: 100 | O49: 76.1614623 | P49: 48.90125501
A50: 51 | B50: 司道润 | C50: 2022310226 | D50: 117.15 | E50: 0.00 | F50: 117.15 | G50: 54.4306262 | H50: 96.41 | I50: 0.00 | J50: 96.41 | K50: 69.02860743 | L50: 100 | M50: 0 | N50: 100 | O50: 76.1614623 | P50: 59.52330606
A51: 52 | B51: 高宁晗 | C51: 2022310206 | D51: 106.33 | E51: 41.88 | F51: 148.20 | G51: 68.85718142 | H51: 101.41 | I51: 0.00 | J51: 101.41 | K51: 72.60632644 | L51: 100 | M51: 0 | N51: 100 | O51: 76.1614623 | P51: 70.33743851
A52: 53 | B52: 余望 | C52: 2022310254 | D52: 88.94 | E52: 40.00 | F52: 128.94 | G52: 59.90853557 | H52: 94.82 | I52: 0.00 | J52: 94.82 | K52: 67.89294601 | L52: 100 | M52: 0 | N52: 100 | O52: 76.1614623 | P52: 63.13071033
A53: 54 | B53: 聂林春 | C53: 2022310255 | D53: 182.66 | E53: 32.57 | F53: 215.23 | G53: 100 | H53: 104.73 | I53: 14.00 | J53: 118.73 | K53: 85.01048091 | L53: 100 | M53: 0 | N53: 100 | O53: 76.1614623 | P53: 94.61824241
A54: 55 | B54: 高照 | C54: 2022315201 | D54: 96.12 | E54: 6.67 | F54: 102.79 | G54: 47.75708606 | H54: 101.57 | I54: 0.00 | J54: 101.57 | K54: 72.72418849 | L54: 100 | M54: 0 | N54: 100 | O54: 76.1614623 | P54: 55.59094417
A55: 56 | B55: 陈子康 | C55: 2022315202 | D55: 84.07 | E55: 10.28 | F55: 94.35 | G55: 43.83817345 | H55: 96.35 | I55: 0.00 | J55: 96.35 | K55: 68.98234382 | L55: 100 | M55: 0 | N55: 100 | O55: 76.1614623 | P55: 52.09933641
A56: 57 | B56: 安思莹 | C56: 2022315203 | D56: 88.38 | E56: 0.00 | F56: 88.38 | G56: 41.06341224 | H56: 100.44 | I56: 0.00 | J56: 100.44 | K56: 71.91567686 | L56: 100 | M56: 0 | N56: 100 | O56: 76.1614623 | P56: 50.74367017
A57: 58 | B57: 蒋乾民 | C57: 2022315204 | D57: 56.70 | E57: 0.00 | F57: 56.70 | G57: 26.34414431 | H57: 96.31 | I57: 0.00 | J57: 96.31 | K57: 68.95921202 | L57: 100 | M57: 0 | N57: 100 | O57: 76.1614623 | P57: 39.84888965
A58: 59 | B58: 冯龙 | C58: 2022315205 | D58: 91.87 | E58: 8.05 | F58: 99.92 | G58: 46.42540146 | H58: 96.38 | I58: 0.00 | J58: 96.38 | K58: 69.00547563 | L58: 100 | M58: 0 | N58: 100 | O58: 76.1614623 | P58: 53.91502238
A59: 60 | B59: 邹义儒 | C59: 2022315207 | D59: 82.55 | E59: 21.17 | F59: 103.72 | G59: 48.18918578 | H59: 102.45 | I59: 3.00 | J59: 105.45 | K59: 75.5033095 | L59: 100 | M59: 0 | N59: 100 | O59: 76.1614623 | P59: 56.44923818
A60: 61 | B60: 褚俊杰 | C60: 2022315206 | D60: 83.15 | E60: 25.75 | F60: 108.90 | G60: 50.59748351 | H60: 96.40 | I60: 0.00 | J60: 96.40 | K60: 69.02089683 | L60: 100 | M60: 0 | N60: 100 | O60: 76.1614623 | P60: 56.83856405
A61: 62 | B61: 李蕊 | C61: 2022315208 | D61: 87.01 | E61: 0.75 | F61: 87.76 | G61: 40.77379701 | H61: 96.35 | I61: 3.00 | J61: 99.35 | K61: 71.13029705 | L61: 100 | M61: 0 | N61: 100 | O61: 76.1614623 | P61: 50.38386355
A62: 63 | B62: 许振彬 | C62: 2022315209 | D62: 97.83 | E62: 45.04 | F62: 142.88 | G62: 66.38442646 | H62: 97.01 | I62: 0.00 | J62: 97.01 | K62: 69.45819808 | L62: 100 | M62: 0 | N62: 100 | O62: 76.1614623 | P62: 67.97688437
A63: 64 | B63: 孔倩 | C63: 2022315210 | D63: 100.60 | E63: 31.42 | F63: 132.02 | G63: 61.33936767 | H63: 100.37 | I63: 0.00 | J63: 100.37 | K63: 71.86170265 | L63: 136 | M63: 0 | N63: 136 | O63: 103.5795887 | P63: 67.66785677
A64: 65 | B64: 蒋郑峰 | C64: 2022315211 | D64: 97.29 | E64: 0.00 | F64: 97.29 | G64: 45.20088323 | H64: 102.29 | I64: 0.00 | J64: 102.29 | K64: 73.23749423 | L64: 100 | M64: 0 | N64: 100 | O64: 76.1614623 | P64: 53.90426333
A65: 66 | B65: 杨昌泽 | C65: 2022315212 | D65: 105.96 | E65: 7.75 | F65: 113.71 | G65: 52.82999874 | H65: 105.95 | I65: 4.00 | J65: 109.95 | K65: 78.72523933 | L65: 100 | M65: 0 | N65: 100 | O65: 76.1614623 | P65: 60.34219321

Sheet 德育加分
A1: 姓名 | B1: 学号 | C1: 学生团体及班级干部 | H1: 校级、市（部）级、国家级先进集体成员（如有多项自行加列） | O1: 志愿服务奖励分 | R1: 总加分
C2: 第一项 | E2: 第二项（*0.2系数） | G2: 总计 | H2: 先进集体成员 | K2: 先进个人 | N2: 总计 | O2: 2023-2024累计志愿时长 | P2: 加分 | Q2: 总计
C3: 项目 | D3: 加分 | E3: 项目 | F3: 加分 | H3: 项目 | I3: 级别 | J3: 加分 | K3: 项目 | L3: 级别 | M3: 加分
A4: 孔肖阳 | B4: 2022310207 | C4: 宿舍长 | D4: 3 | G4: 3 | R4: =G4+N4+Q4 -> 3
A5: 冯仕杰 | B5: 2022310215 | R5: =G5+N5+Q5 -> 0
A6: 殷梦凡 | B6: 2022310223 | C6: 宣传委员 | D6: 4 | G6: 4 | R6: 4
A7: 薛其州 | B7: 2022310229 | R7: 0
A8: 李硕凡 | B8: 2022310234 | R8: 0
A9: 谢泽睿 | B9: 2022310235 | R9: 0
A10: 曹越 | B10: 2022310245 | R10: 0
A11: 李鹏飞 | B11: 2022310246 | R11: 0
A12: 修浩 | B12: 2022310248 | R12: 0
A13: 李东泽 | B13: 2022310208 | C13: 宿舍长 | D13: 3 | G13: 3 | K13: 三好学生、优秀研究生 | L13: 校级 | M13: 10 | N13: 10 | R13: 13
A14: 黄可儿 | B14: 2022310212 | C14: 宿舍长 | D14: 3 | G14: 3 | R14: 3
A15: 吕明珠 | B15: 2022310213 | C15: 工艺研第三党支部纪检委员 | D15: 4 | E15: 宿舍长 | F15: 0.6 | G15: 4.6 | R15: 4.6
A16: 包若凝 | B16: 2022310214 | K16: 优秀学生干部、暑期社会实践先进个人 | L16: 校级 | M16: 10 | N16: 10 | R16: 10
A17: 柳楠 | B17: 2022310220 | C17: 宿舍长 | D17: 3 | G17: 3 | R17: 3
A18: 徐伟杰 | B18: 2022310228 | C18: 班长 | D18: 6 | E18: 宿舍长 | F18: 0.6 | G18: 6.6 | R18: 6.6
A19: 王鑫 | B19: 2022310240 | C19: 工程研第四党支部书记 | D19: 6 | E19: 宿舍长 | F19: 0.6 | G19: 6.6 | R19: 6.6
A20: 许关欣 | B20: 2022310241 | R20: 0
A21: 李之辉 | B21: 2022310237 | R21: 0
A22: 刘玉佩 | B22: 2022310238 | R22: 0
A23: 黄萌 | B23: 2022310243 | R23: 0
A24: 陈冬冬 | B24: 2022310251 | C24: 宿舍长 | D24: 3 | G24: 3 | K24: 中国石油大学（北京）三好学生；中国石油大学（北京）优秀研究生 | M24: 10 | N24: 10 | R24: 13
A25: 郑蓉蓉 | B25: 2022310210 | C25: 团支书 | D25: 6 | E25: 宿舍长 | F25: 0.6 | G25: 6.6 | K25: 三好学生、优秀班干部 | L25: 校级 | M25: 10 | N25: 10 | R25: 16.6
A26: 于洋 | B26: 2022310211 | C26: 心理委员 | D26: 4 | G26: 4 | R26: 4
A27: 王智远 | B27: 2022310216 | C27: 工程研第一党支部副书记 | D27: 4 | G27: 4 | H27: 实验室安全技能大赛 | I27: 二等奖 | J27: 2 | K27: 优秀研究生 | L27: 校级 | M27: 10 | N27: 12 | R27: 16
A28: 李瑞 | B28: 2022310217 | R28: 0
A29: 熊东 | B29: 2022310218 | R29: 0
A30: 赵飞龙 | B30: 2022310224 | R30: 0
A31: 吴昊峰 | B31: 2022310227 | C31: 宿舍长 | D31: 3 | G31: 3 | R31: 3
A32: 刘璐 | B32: 2022310230 | R32: 0
A33: 陈靖 | B33: 2022310231 | R33: 0
A34: 夏添 | B34: 2022310233 | C34: 宿舍长 | D34: 3 | G34: 3 | R34: 3
A35: 李晓涵 | B35: 2022310232 | R35: 0
A36: 谢浩东 | B36: 2022310244 | K36: 三好学生 | L36: 校级 | M36: 5 | N36: 5 | R36: 5
A37: 于春晖 | B37: 2022310249 | K37: 三好学生、优秀研究生 | L37: 校级 | M37: 10 | N37: 10 | R37: 10
A38: 张浩楠 | B38: 2022310250 | O38: 36 | P38: 3 | Q38: 3 | R38: 3
A39: 陈霖 | B39: 2022310201 | R39: 0
A40: 刘莎莎 | B40: 2022310202 | R40: 0
A41: 张瑞 | B41: 2022310203 | R41: 0
A42: 张世源 | B42: 2022310219 | R42: 0
A43: 姜梁妍 | B43: 2022310239 | R43: 0
A44: 刘申宁 | B44: 2022310242 | R44: 0
A45: 杨若宸 | B45: 2022310253 | R45: 0
A46: 蔡进 | B46: 2022310204 | R46: 0
A47: 陈欢 | B47: 2022310205 | R47: 0
A48: 王明龙 | B48: 2022310221 | R48: 0
A49: 卜禹豪 | B49: 2022310236 | R49: 0
A50: 李建 | B50: 2022310222 | R50: 0
A51: 南睿 | B51: 2022310225 | R51: 0
A52: 司道润 | B52: 2022310226 | R52: 0
A53: 高宁晗 | B53: 2022310206 | R53: 0
A54: 余望 | B54: 2022310254 | R54: 0
A55: 聂林春 | B55: 2022310255 | C55: 体委 | D55: 4 | G55: 4 | K55: 三好学生、优秀研究生 | L55: 校级 | M55: 10 | N55: 10 | R55: 14
A56: 高照 | B56: 2022315201 | R56: 0
A57: 陈子康 | B57: 2022315202 | R57: 0
A58: 安思莹 | B58: 2022315203 | R58: 0
A59: 蒋乾民 | B59: 2022315204 | R59: 0
A60: 冯龙 | B60: 2022315205 | R60: 0
A61: 邹义儒 | B61: 2022315207 | C61: 宿舍长 | D61: 3 | G61: 3 | R61: 3
A62: 褚俊杰 | B62: 2022315206 | R62: 0
A63: 李蕊 | B63: 2022315208 | C63: 宿舍长 | D63: 3 | G63: 3 | R63: 3
A64: 许振彬 | B64: 2022315209 | R64: 0
A65: 孔倩 | B65: 2022315210 | R65: 0
A66: 蒋郑峰 | B66: 2022315211 | R66: 0
A67: 杨昌泽 | B67: 2022315212 | C67: 组织委员 | D67: 4 | G67: 4 | R67: =G67+N67+Q67 -> 4

Sheet 智育加分
B1: 学号 | C1: 班级 | D1: 总加分 | E1: 学术成果 | BX1: 学术会议 | CE1: 专利 | CO1: 科技创新、学科竞赛 | CU1: 总计加分
E2: 文章标题（1) | F2: 第一作者（是/否） | G2: 作者名称（请按照作者顺序填写，、号间隔，涉及学生姓名请标红） | H2: 期刊全称 | I2: 大类分区（JCR、Ei等） | J2: 分区 | K2: 加分 | L2: 文章标题(2) | M2: 第一作者（是/否） | N2: 作者名称（请按照作者顺序填写，、号间隔，涉及学生姓名请标红） | O2: 期刊全称 | P2: 大类分区（JCR、Ei等） | Q2: 分区 | R2: 加分 | S2: 文章标题（3) | T2: 是否为第一作者 | U2: 作者名称（请按照作者顺序填写，、号间隔，涉及学生姓名请标红） | V2: 期刊全称 | W2: 大类分区（JCR、Ei等） | X2: 分区 | Y2: 加分 | Z2: 文章标题（4) | AA2: 第一作者（是/否） | AB2: 作者名称（请按照作者顺序填写，、号间隔，涉及学生姓名请标红） | AC2: 期刊全称 | AD2: 大类分区（JCR、Ei等） | AE2: 分区 | AF2: 加分 | AG2: 文章标题（5) | AH2: 第一作者（是/否） | AI2: 作者名称（请按照作者顺序填写，、号间隔，涉及学生姓名请标红） | AJ2: 期刊全称 | AK2: 大类分区（JCR、Ei等） | AL2: 分区 | AM2: 加分 | AN2: 文章标题（6) | AO2: 第一作者（是/否） | AP2: 作者名称（请按照作者顺序填写，、号间隔，涉及学生姓名请标红） | AQ2: 期刊全称 | AR2: 大类分区（JCR、Ei等） | AS2: 分区 | AT2: 加分 | AU2: 文章标题（7) | AV2: 第一作者（是/否） | AW2: 作者名称（请按照作者顺序填写，、号间隔，涉及学生姓名请标红） | AX2: 期刊全称 | AY2: 大类分区（JCR、Ei等） | AZ2: 分区 | BA2: 加分 | BB2: 文章标题（8) | BC2: 第一作者（是/否） | BD2: 作者名称（请按照作者顺序填写，、号间隔，涉及学生姓名请标红） | BE2: 期刊全称 | BF2: 大类分区（JCR、Ei等） | BG2: 分区 | BH2: 加分 | BI2: 文章标题（9) | BJ2: 第一作者（是/否） | BK2: 作者名称（请按照作者顺序填写，、号间隔，涉及学生姓名请标红） | BL2: 期刊全称 | BM2: 大类分区（JCR、Ei等） | BN2: 分区 | BO2: 加分 | BP2: 文章标题（10) | BQ2: 第一作者（是/否） | BR2: 作者名称（请按照作者顺序填写，、号间隔，涉及学生姓名请标红） | BS2: 期刊全称 | BT2: 大类分区（JCR、Ei等） | BU2: 分区 | BV2: 加分 | BW2: 总计加分 | BX2: 会议名称 | BY2: 参会类型（发表论文摘要、口头、海报） | BZ2: 论文题目 | CA2: 会议级别 | CB2: 分档 | CC2: 总计加分 | CD2: 备注 | CE2: 专利名称 | CF2: 国家/国际 | CG2: 第一作者（是/否） | CH2: 导师第一、本人第二（是/否） | CI2: 作者名称（请按照作者顺序填写，、号间隔，涉及学生姓名请标红） | CJ2: 授权（是/否） | CK2: 公开号 | CL2: 申请号 | CM2: 总计加分 | CN2: 备注 | CO2: 竞赛名称 | CP2: 主办单位 | CQ2: 竞赛级别 | CR2: 获奖等级 | CS2: 团队成员（队长在第一位，自己的名字标红） | CT2: 加分
A3: 孔肖阳 | B3: 2022310207 | E3: Preparation and optimization of dendritic Ni/Y-silica composite catalysts for naphthalene hydrocracking to BTX | F3: 是 | G3: Xiaoyang Kong、Zhentao Liu、Yutong Zou、Chunya Wang、Chunming Xu、Xilong Wang | H3: Journal of Catalysis | I3: JCR | J3: 1 | K3: 25.0000000 | L3: Pore-Structure Engineering of Hierarchical Ni/Y Catalysts for the Enhanced Selective Hydrocracking of Naphthalene to BTX | M3: 是 | N3: Xiaoyang Kong、Yuyang Li、Zhentao Liu、Yutong Zou、Dongze Li、Jixing Liu、Wei Wang、Chunya Wang、Chunming Xu、Xilong Wang | O3: ACS Sustainable Chemistry & Engineering | P3: JCR | Q3: 1.0000000 | R3: 25.0000000 | S3: Regulating metal-acid active sites in hierarchical porous Ni/Y for selective hydrocracking of naphthalene | T3: 是 | U3: Xiaoyang Kong、Jinlin Mei、Zhentao Liu、Yutong Zou、Enhua Wang、Wei Wang、Chunya Wang、Chunming Xu、Xilong Wang | V3: Carbon Resources Conversion | W3: JCR | X3: 2.0000000 | Y3: 15.0000000 | Z3: Engineering the pore structure of hierarchical silica via simple mechanical shear for the enhanced selective hydrogenation of naphthalene | AA3: 否 | AB3: Enhua Wang、Kai Cheng、Zhentao Liu、Xiaoyang Kong、Wei Wang、Aijun Duan、Xilong Wang | AC3: Fuel | AD3: JCR | AE3: 2 | AF3: 2.5000000 | AG3: Hierarchical catalysts with controllable C-C and C-O bond activation ability for selective hydrogenation of oleic acid | AH3: 否 | AI3: Jinlin Mei、Zhentao Liu、Zhengkai Cao、Aocheng Wang、Xiaoyang Kong、Aijun Duan、Chunya Wang、Chunming Xu、Xilong Wang | AJ3: AIChE Journal | AK3: JCR | AL3: 3 | AM3: 1.0714280 | AN3: Influence of grain size of acidic NiMo/TS-1 on its catalytic performance for hydrodesulfurization of dibenzothiophenes | AO3: 否 | AP3: Yutong Zou、Chengkun Xiao、Xiaoyang Kong、Liang Qiao、Wei Wang、Chunya Wang、Aijun Duan、Chunming Xu、Xilong Wang | AQ3: Carbon Resources Conversion | AR3: JCR | AS3: 2.0000000 | AT3: 1.8750000 | AU3: One-pot template-free green synthesis of mesoporous amorphous silica-alumina for enhanced hydrogen storage in naphthalene | AV3: 否 | AW3: Dongze Li、Zhentao Liu、Liang Qiao、Xiaoyang Kong、Enhua Wang、Haidong Li、Lili Jin、Chunya Wang、Chunming Xu、Xilong Wang | AX3: Journal of Catalysis | AY3: JCR | AZ3: 1.0000000 | BA3: 2.7777800 | BB3: Revealing the mechanism of selective hydrogenation of oleic acid on bifunctional hierarchical catalysts | BC3: 否 | BD3: Zhentao Liu , Jinlin Mei , Xiaoyang Kong , Dongze Li , Yutong Zou , Chunya Wang , Yanjun Gong , Aijun Duan , Chunming Xu , Xilong Wang | BE3: Journal of Catalysis | BF3: JCR | BG3: 1.0000000 | BH3: 2.7778000 | BI3: Rational design of hierarchical porous structure of ZSM-22 for boosting high-efficiency selective hydrogenation of oleic acid to jet fuel | BJ3: 否 | BK3: Zhentao Liu , Jinlin Mei , Xiaoyang Kong , Zikang Chen , Dong Li , Haidong Li , Chunya Wang , Yanjun Gong , Chunming Xu , Xilong Wang | BL3: Chemical Engineering Journal | BM3: JCR | BN3: 1.0000000 | BO3: 2.7777800 | BP3: Insights into the roles of Niδ+ species on the selective hydrogenation of oleic acid to jet fuel | BQ3: 否 | BR3: Jinlin Mei , Zhentao Liu , Xiaoyang Kong , Aocheng Wang , Dongze Li , Dong Li , Yanjun Gong , Xiaochun Zhu , Chunming Xu , Xilong Wang | BS3: Journal of Catalysis | BT3: JCR | BU3: 1.0000000 | BV3: 3.1250000 | BW3: =BV3+BO3+BH3+BA3+AT3+AM3+AF3+Y3+R3+K3 -> 81.9047880 | CU3: =CT3+CM3+CC3+BW3 -> 81.9047880
A4: 冯仕杰 | B4: 2022310215 | BW4: 0.0000000 | CU4: =CT4+CM4+CC4+BW4 -> 0.0000000
A5: 殷梦凡 | B5: 2022310223 | E5: Liquid-liquid extraction and separation mechanism of aromatics and alkanes by ionic liquids | F5: 是 | G5: Mengfan Yin, Jiaxin Cui, Han Liu, Rui Zhang *, Tao Zheng, Haiyan Liu, Zhichang Liu, Chunming Xu, Xianghai Meng | H5: Separation and Purification Technology | I5: JCR | J5: 投稿当年中科院1区 | K5: 25.0000000 | L5: Efficient Extraction of Olefin from Liquid-Phase Olefin/Alkane Mixtures Using Novel Bimetallic Ionic Liquids | M5: 否 | N5: JiaxinCui,MengfanYin,TaoZheng,HanLiu,RuiZhang,*HaiyanLiu,ZhichangLiu,ChunmingXu,andXianghaiMeng | O5: ACS Omega | P5: JCR | Q5: 3.0000000 | R5: 0.9375000 | S5: 可再生能源电解水制氢-低温低压合成氨万吨级工业示范流程设计 | T5: 是 | U5: 殷梦凡，王倩，郑涛，姬奎，王绍贵，郭辉，林志强，张睿，孙晖，刘海燕，刘植昌，徐春明，孟祥海，王月平 | V5: 化工学报 | W5: EI | Y5: 1.5000000 | Z5: 铝铜双金属离子液体在1-己烯/正己烷分离中的应用 | AA5: 否 | AB5: 崔家馨，殷梦凡，郑涛，刘晗，张睿，刘植昌，刘海燕，徐春明，孟祥海 | AC5: 化工学报 | AD5: EI | AF5: 0.1875000 | AG5: 亚铜基离子液体/乙二醇复配萃取剂分离液体烯烃/烷烃 | AH5: 否 | AI5: 崔家馨，殷梦凡，郑涛，刘晗，张睿，刘植昌，刘海燕，徐春明，孟祥海 | AJ5: 化工进展 | AK5: EI | AM5: 0.1875000 | AN5: CuAlCl4-二甲苯络合物晶体结构及二元固液相平衡测定 | AO5: 否 | AP5: 刘晗，崔家馨，殷梦凡，郑涛，张睿，孟祥海，刘植昌，刘海燕，徐春明 | AQ5: 化工学报 | AR5: EI | AT5: 0.1875000 | AU5: CuAlCl4络合-熔融结晶法分离混合二甲苯中的对二甲苯 | AV5: 否 | AW5: 刘晗，殷梦凡，崔家馨，郑涛，孟祥海，张睿，刘海燕，刘植昌，徐春明 | AX5: 过程工程学报 | AY5: 中文核心 | BA5: 0.0625000 | BW5: 28.0625000 | CE5: 一种用于分离催化裂化轻汽油或催化裂解 轻汽油中烯烃的离子液体萃取剂及其应用 | CF5: 国家发明专利 | CG5: 否 | CH5: 否 | CI5: 孟祥海 崔家馨 殷梦凡 郑涛 张睿 刘植昌 刘海燕 徐春明 | CJ5: 否 | CK5: CN 118909662 A | CL5: 202411138956.8 | CM5: 0.7500000 | CO5: 第十四届研究生学术论坛 | CP5: 中国石油大学（北京）化学工程与环境学院 | CR5: 二等奖 | CS5: 殷梦凡 | CT5: 0.6000000 | CU5: 29.4125000
A6: 薛其州 | B6: 2022310229 | BW6: 0.0000000 | CU6: 0.0000000
A7: 李硕凡 | B7: 2022310234 | BW7: 0.0000000 | CU7: 0.0000000
A8: 谢泽睿 | B8: 2022310235 | BW8: 0.0000000 | BX8: 1.中国系统工程学会过程系统工程（SESC-PSE）年会 2.2024年重质油全国重点实验室学术与文化交流会 | BY8: 1.口头 2.海报 | BZ8: 1.原油分子层次组成模型构建及原油分子数据库建设 2.船用燃料油分子组成及黏度预测模型构建 | CA8: 1.全国 2.全国 | CC8: 1.25 | CU8: 1.2500000
A9: 曹越 | B9: 2022310245 | BW9: 0.0000000 | CU9: 0.0000000
A10: 李鹏飞 | B10: 2022310246 | BW10: 0.0000000 | CU10: 0.0000000
A11: 修浩 | B11: 2022310248 | BW11: 0.0000000 | CU11: 0.0000000
A12: 李东泽 | B12: 2022310208 | E12: One-pot template-free green synthesis of mesoporous amorphous silica-alumina for enhanced hydrogen storage in naphthalene | F12: 是 | G12: Dongze Li、 Zhentao Liu、 Liang Qiao、Xiaoyang Kong、 Enhua Wang、 Haidong Li、 Lili Jin、 Chunya Wang、 Chunming Xu、 Xilong Wang | H12: Journal of Catalysis | I12: JCR | J12: 1 | K12: 25.0000000 | L12: Insights into the roles of Niδ+ species on the selective hydrogenation of oleic acid to jet fuel | M12: 否 | N12: Jinlin Mei 1、Zhentao Liu 1、Xiaoyang Kong、Aocheng Wang、Dongze Li、Dong Li、Yanjun Gong、Xiaochun Zhu、Chunming Xu、Xilong Wang | O12: Journal of Catalysis | P12: JCR | Q12: 1.0000000 | R12: =25/8 -> 3.125 | S12: Revealing the mechanism of selective hydrogenation of oleic acid on bifunctional hierarchical catalysts | T12: 否 | U12: Zhentao Liu、Jinlin Mei、Xiaoyang Kong、Dongze Li、Yutong Zou、Chunya Wang、Yanjun Gong、Aijun Duan、Chunming Xu、Xilong Wang | V12: Journal of Catalysis | W12: JCR | X12: 1 | Y12: =25/9 -> 2.7777778 | Z12: Pore-Structure Engineering of Hierarchical Ni/Y Catalysts for the Enhanced Selective Hydrocracking of Naphthalene to BTX | AA12: 否 | AB12: Xiaoyang Kong、Yuyang Li、Zhentao Liu、Yutong Zou、Dongze Li、Jixing Liu、Wei Wang、Chunya Wang、Chunming Xu、Xilong Wang | AC12: ACS Sustainable Chemistry & Engineering | AD12: JCR | AE12: 1.0000000 | AF12: =25/9 -> 2.7777778 | BW12: =BV12+BO12+BH12+BA12+AT12+AM12+AF12+Y12+R12+K12 -> 33.6805556 | BX12: 第二十一届国际分子筛学术大会 | BY12: 口头 | BZ12: TS-1/FDU-12 micro-mesoporous composites by nano-assembly method for efficient hydrodesulfurization of dibenzothiophene | CA12: 国际 | CB12: 3 | CC12: 3 | CE12: 一种无定形硅铝催化剂及其制备方法和应用 | CF12: 国家 | CG12: 否 | CH12: 是 | CI12: 王喜龙、李东泽、王春雅、徐春明、张茂林、何文清 | CJ12: 否 | CK12: CN 119114063 A | CL12: 202411181350.2 | CM12: 3.75 | CU12: 40.4305556
A13: 黄可儿 | B13: 2022310212 | E13: Interpretable prediction of viscosity and CO2 absorption rate of amine solvents combined with molecular dynamics simulations and machine learning. | F13: 是 | G13: Keer Huang、Tianhang Zhou、Jiahao Liu、Jinsen Gao、Chunming Xu、Xingying Lan | H13: Chemical Engineering Science | I13: JCR | J13: 2 | K13: 15.0000000 | L13: 基于分子动力学模拟的胺溶剂碳捕集过程自扩散系数研究 | M13: 是 | N13: 黄可儿、刘佳豪、李昊明、周天航、高金森、蓝兴英 | O13: 化工进展 | P13: EI | R13: 3.0000000 | BW13: 18.0000000 | BX13: 第12届世界化学工程大会暨第21届亚太化工联盟大会 | BY13: 墙报 | BZ13: Interpretable prediction of CO2 capture properties of amine solvents combined with molecular dynamics simulations and machine learning | CA13: 国际 | CB13: 3 | CC13: 0.75 | CO13: 第十四届研究生学术论坛 | CP13: 中国石油大学（北京） | CQ13: 校级 | CR13: 三等奖 | CS13: 黄可儿 | CU13: 18.7500000
A14: 吕明珠 | B14: 2022310213 | E14: DeterminationofKeyOperatingParametersinaHigh-Density CirculatingFluidizedBed | F14: 是 | G14: Mingzhu Lv,Yunpeng Zhao,Min Wang,Chengxiu Wang,Xingying Lan,Jinsen Gao, Xiaogang Shi | H14: Industrial & Engineering Chemistry Research | I14: JCR | J14: 3 | K14: 7.5000000 | L14: Optimizing droplet vaporization in the emulsified feeding technique of FCC: Impacts of operating conditions and reactor structures | M14: 否 | N14: Yunpeng Zhao，Mingzhu Lv，Xiaogang Shi，Xingying Lan，Jinsen Gao，Wenheng Jing | O14: Chemical Engineering Science | P14: JCR | Q14: 2.0000000 | R14: 3.0000000 | BW14: 10.5000000 | BX14: 1.第十三届（2025年）全国流态化会议暨颗粒技术会议 2.第四届全国过程模拟与仿真学术会议 3.第十届中英国际颗粒技术论坛 | BY14: 1.口头 2.口头 3.墙报 | BZ14: 1.不同流态化域内气相扩散和传热的对比研究2.RTC反应器内气固两相流的模拟研究 3.Comparative study on gas-phase diffusion and heat transfer in different fluidization regimes | CA14: 1.国内 2.国内 3.国际 | CB14: 1 | CC14: 1 | CU14: 11.5000000
A15: 包若凝 | B15: 2022310214 | BW15: 0.0000000 | BX15: 1.2024年重质油全国重点实验室学术与文化交流会； 2.2024首届分析科学与仪器大会 3.第二十一届北京分析测试学术报告会暨展览会(BCEIA2025) 4.国际化学工程前沿论坛暨第十七届全球华人化工学会年会 | BY15: 1.口头 2.墙报 3.墙报 4.墙报 | BZ15: 1.基于成环反应的石油烯烃精确机构表征； 2.Identification of double bond positions in olefin by the Charge-TaggingPatern'-Büchi reaction and ultra-high-resolution mass spectrometry 3.Metabolomic Profiling of Human Metabolic Responses to HighAltitude Hypoxic Environment 4.Characterization of Olefin Structure in Petroleumby Chemical Derivatization | CA15: 1.全国 2.全国 3.国际 4.国际 | CB15: 1,1,3 | CC15: 2 | CE15: 1.基于电荷标记 PB 反应及逆 PB反应分析烃类化合物双键位置的方法 2.一种基于氮杂环反应分析烯烃类化合物双键位置的方法 3.一种基于环氧三元环反应分析烯烃类化合物的方法 | CF15: 1.国家 2.国家 3.国家 | CG15: 1.否 2.否 3.否 | CH15: 1.是 2.是 3.是 | CI15: 1.韩晔华、包若凝、徐春明 2.韩晔华、包若凝、徐春明 3.韩晔华、包若凝、徐春明 | CJ15: 1.否 2.否 3.否 | CK15: 1.CN120539319A 2.CN120539317A 3.CN120539318A | CL15: 1.202510798595.8 2.202510796297.5 3.202510798588.8 | CM15: 22.5 | CU15: =CT15+CM15+CC15+BW15 -> 24.5000000
A16: 柳楠 | B16: 2022310220 | E16: Hybrid deep learning framework with spatiotemporal pattern extraction for decant oil solid content soft sensor development in fluid catalytic cracking units | F16: 是 | G16: Nan Liu, Chun-Meng Zhu, Yu-Hui Li, Yun-Peng Zhao, Xiao-Gang Shi, Xing-Ying Lan | H16: Petroleum Science | I16: JCR | J16: 一区 | K16: 25.0000000 | L16: Hierarchical framework for predictive maintenance of coking risk in fluid catalytic cracking units: A data and knowledge-driven method | M16: 是 | N16: Nan Liu 1, Chunmeng Zhu 1,2, Zeng Li 1, Yunpeng Zhao 1, Xiaogang Shi 1, Xingying Lan 1,2,* | O16: Chinese Journal of Chemical Engineering | P16: JCR | Q16: 3.0000000 | R16: 7.5000000 | S16: Multimode residual monitoring of particle concentration in flue gas from Fluid Catalytic Cracking regenerator | T16: 否 | U16: Chunmeng Zhua,b, Nan Liua, Mengxuan Zhanga, Zeng Lia, Yuhui Lia, Xiaogang Shia, Xingying Lan | V16: Control EngineeringPractice | W16: JCR | X16: 2.0000000 | Y16: 2.5000000 | Z16: A multi-source mixed-frequency information fusion framework based on spatialtemporal graph attention network for anomaly detection of catalyst loss in FCC regenerators | AA16: 否 | AB16: Chunmeng Zhu 1,2, Nan Liu 2, Ludong Ji 2, Yunpeng Zhao 2, Xiaogang Shi 2, Xingying Lan | AC16: Chinese Journal of Chemical Engineering | AD16: JCR | AE16: 3.0000000 | AF16: 1.5000000 | AG16: Enhancing Cyclone Separator Performance via Computational Fluid Dynamics and Intelligent Optimization: Synergizing Design of Experiments, Machine Learning, and Multi-Objective Genetic Algorithms | AH16: 否 | AI16: Jianhao Guo, Yunpeng Zhao, Nan Liu, Chunmeng Zhu, Xiaogang Shi & Xingying Lan | AJ16: Frontiers of Chemical Science and Engineering | AK16: JCR | AL16: 3.0000000 | AM16: 1.5000000 | AN16: A Fault Judgment Method of Catalyst Loss in FCC Disengager Based on Fault Tree Analysis and CFD Simulation | AO16: 否 | AP16: Yuhui Li 1,Yunpeng Zhao 1,Zeng Li 1,Nan Liu 1,Chunmeng Zhu 1,Shouzhuang Li 2,*,Xiaogang Shi 1,Chengxiu Wang 1 andXingying Lan 1,* | AQ16: Processes | AR16: JCR | AS16: 4.0000000 | AT16: 0.6250000 | AU16: 基于自编码器和多尺度符号转移熵的FCC沉降器跑剂故障检测 | AV16: 否 | AW16: 朱春梦1,2李增2柳楠2赵云鹏2石孝刚2蓝兴英2 | AX16: 化工学报 | AY16: EI | BA16: 0.3000000 | BB16: 基于CFD模拟的催化裂化沉降器跑剂异常诊断 | BC16: 否 | BD16: 李增1赵云鹏1李宇慧1柳楠1朱春梦1,2石孝刚1高金森1蓝兴英1 | BE16: 化工进展 | BF16: EI | BH16: 0.2143000 | BW16: =BV16+BO16+BH16+BA16+AT16+AM16+AF16+Y16+R16+K16 -> 39.1393000 | BX16: 1. 第十二届世界化学工程大会暨第21届亚太化工联盟大会 2. 2024国家工业软件大会 | BY16: 墙报 | BZ16: 1. Knowledge-Enhanced Fault Detection and Diagnosis for FCCUs Decant Oil Circulation System: Reinforcement Learning-based Causal Embedding in VAE and Bayesian Methods 2. 一种集成知识与数据驱动的催化分馏塔结焦风险监测框架 | CA16: 1.国际 2.全国 | CB16: 3 | CC16: 0.75 | CU16: 39.8893000
A17: 徐伟杰 | B17: 2022310228 | BW17: =BV17+BO17+BH17+BA17+AT17+AM17+AF17+Y17+R17+K17 -> 0.0000000 | CU17: 0.0000000
A18: 王鑫 | B18: 2022310240 | BW18: 0.0000000 | CU18: 0.0000000
A19: 许关欣 | B19: 2022310241 | BW19: 0.0000000 | BX19: 第12届世界化学工程大会暨第21届亚太化工联盟大会 | BY19: 海报 | BZ19: Schedule Optimization of Hydrogen Production System Considering Electrochemical Model of Alkaline electrolyzer | CA19: 国际 | CB19: 3 | CC19: 0.75 | CU19: 0.7500000
A20: 李之辉 | B20: 2022310237 | E20: Solids holdup of Geldart group C particles desulfurization ash in a novel loop coupled circulating fluidized bed riser reactor | F20: 是 | G20: Zhihui Li、Dashan Song、Xiao Yang、Chengxiu Wang、Zeneng Sun、Xingying Lan、 Jinsen Gao | H20: Powder Technology | I20: JCR | J20: 二区 | K20: 15.0000000 | BW20: 15.0000000 | CE20: 一种搅拌式颗粒环流耦合反应器、流化床及颗粒环流耦合方法 | CF20: 国家 | CG20: 否 | CH20: 否 | CI20: 王成秀、 石孝刚、 蓝兴英、高金森、路兵、李之辉 | CJ20: 否 | CK20: CN119588256A | CL20: CN202411786966.2 | CM20: 0.75 | CU20: 15.7500000
A21: 刘玉佩 | B21: 2022310238 | E21: 轻烃催化裂解过程中影响甲烷生成的因素分析 | F21: 是 | G21: 刘玉佩，赵文龙，史得军，张晓军，孙志国，王刚，张忠东 | H21: 石油学报（石油加工） | I21: EI | K21: 3.0000000 | BW21: 3.0000000 | CU21: =CT21+CM21+CC21+BW21 -> 3.0000000
A22: 黄萌 | B22: 2022310243 | BW22: 0.0000000 | CU22: 0.0000000
A23: 陈冬冬 | B23: 2022310251 | E23: Microenvironment-driven modulation of steric hindrance and adsorption sites: Unraveling hexane adsorption and diffusion behavior on metal-doped catalysts through SiO2/Al2O3 ratio and metal types | F23: 是 | G23: Dongdong Chen, Dongyang Liu, Liang Zhao*, Jinsen Gao, Chunming Xu | H23: Chemical Engineering Science | I23: JCR | J23: 二区 | K23: 15.0000000 | L23: Mechanisms of competitive adsorption and diffusion of ethyl sulfide and n-butyl mercaptan with cyclohexene in FAU:MC and MD | M23: 是 | N23: Dongdong Chen, Pei Xue, Dongyang Liu, Yuhao Zhang, Liang Zhao*, Jinsen Gao | O23: Chinese Journal of Chemical Engineering | P23: JCR | Q23: 三区 | R23: 7.5000000 | S23: Synthesis of Ti-modified Al₂O₃ support and its application in CoMoS catalysts for selective hydrogenation of polycyclic aromatic hydrocarbons | T23: 否 | U23: Han Yang, Wenbin Huang, Dongdong Chen, Fan Shao, Meng Huang, Rongrong Li, Zhen Xu, Tianyu Bai, Xuan Zhou, Wenyan Ma, Yasong Zhou, Quan Xu*, Qiang Wei | V23: Chemical Engineering Journal | W23: JCR | X23: 1区 | Y23: 2.0833330 | Z23: Experiment and catalyst acid property-included molecular level kinetic model for catalytic pyrolysis process. | AA23: 否 | AB23: Dongyang Liu, Dongdong Chen, Linzhou Zhang, Liang Zhao, Jinsen Gao, Chunming Xu | AC23: Fuel | AD23: JCR | AE23: 二区 | AF23: 3.0000000 | AG23: Novel strategy for constructing electron-enriched polymeric vanadium by one-step acid etching to enhance the NH3-SCR activity and sulfur resistance | AH23: 否 | AI23: Haixiao Sun, Zhikun Chen, Dongdong Chen, Chunxiao Zhao, Yifan Wu, Zeli Wu, Huatong Li, Zhaoshuo Yuan, Yujie Liu, Tongguang Xu, Xiaoping Dai, Xin Zhang* | AJ23: Separation and Purification Technology | AK23: JCR | AL23: 二区 | AM23: 1.3636000 | BW23: 28.9469330 | CU23: 28.9469330
A24: 郑蓉蓉 | B24: 2022310210 | E24: In-situ amine modification of porous polymer/silica spiral wound module for CO2 capture from ambient air | F24: 是 | G24: Rongrong Zheng, Mengyao Jiang, Yanfang Fan | H24: Chemical Engineering Journal | I24: JCR | J24: 一区 | K24: 25.0000000 | BW24: 25.0000000 | CU24: 25.0000000
A25: 于洋 | B25: 2022310211 | BW25: 0.0000000 | CU25: 0.0000000
A26: 王智远 | B26: 2022310216 | E26: 酸性离子液体H0的测定及盐效应的影响 | F26: 是 | G26: 王智远， 董义， 齐保辉， 魏学洋， 张佳辉， 黄起中，李积升， 高娜， 邸士莹， 胡玉峰 | H26: 高等学校化学学报 | I26: JCR | J26: 三区 | K26: 7.5000000 | L26: Molecular Insights and Process Integration for Efficient Separation of Methanol/Methyl Ethyl Ketone by Ionic Liquid Extractive Distillation | M26: 否 | N26: Jiahui Zhang, Chao Pan,* Shiying Di, Qizhong Huang, Jisheng Li, Zhiyuan Wang, Ye Yang, Ningning Wang, Kuo Chang, Lingcong Kong, Wangchen Fan, Zixian Zhang, Siqi Jiang, Yufeng Hu,* and Zhichang Liu* | O26: ACS Sustainable Chemistry & Engineering | P26: JCR | Q26: 一区 | R26: 1.7857143 | S26: A new mechanism for ionic liquid-assisted 2-ethylhexanol extraction of boric acid: Validation through both quantum chemical calculations and experiments | T26: 否 | U26: Qizhong Huang a, Jisheng Li a,b, Chenglong Ma a, Ningning Wang a, Jingjing Pi a, Zixian zhang a, Kuo Chang a, Lingcong Kong a, Ye Yang a, Xin Guo a, Zhiyuan Wang a, Jiahui Zhang a, Chao Pan a,*, Yufeng Hu a,*, Zhichang Liu a,* | V26: Separation and Purification Technology | W26: JCR | X26: 发表时一区 | Y26: 1.7857143 | Z26: Exploration of energy-saving processes for the separation of tetrahydrofuran/methanol/water: From separation mechanism to experimental validation | AA26: 否（通讯作者） | AB26: Jiahui Zhang a,1, Chao Pan a,1, Chunxiao Ren b, Chuanxi Li b, Shiying Di a, Siqi Jiang d, Qizhong Huang a, Na Gao a, Ningning Wang a, Kuo Chang a, Lingcong Kong a, Zhiyuan Wang a,*,Yufeng Hu a,*, Zhichang Liu a,*, Xin Guo c,* | AC26: Fuel | AD26: JCR | AE26: 发表时一区 | AF26: 1.9230769 | AG26: Toward mechanistic understanding of highly extraction efficiency for boron from Salt Lake brine: kinetics, mass transfer, and modeling | AH26: 否 | AI26: Yajing Wang,a Jisheng Li,a,b Caixiong Quan,b Shiying Di,a Siqi Jiang,c Zhiyuan Wang,a Ningning Wang,a Jiahui Zhang,a Xin Guoa,d* and Yufeng Hua* | AJ26: Journal of Chemical Technology & Biotechnology | AK26: JCR | AL26: 四区 | AM26: 0.5555556 | BW26: 13.5500611 | CE26: 一种用于从盐湖卤水中萃取硼酸的助萃取剂及萃取硼酸的方法 | CF26: 国家 | CG26: 否 | CH26: 否 | CI26: 李积升，胡玉峰，孙长宇，王智远，马成龙 | CJ26: 是 | CK26: CN 115920450 B | CL26: 202211581040.0 | CM26: =15/2/2/2 -> 1.875 | CU26: 15.4250611
A27: 李瑞 | B27: 2022310217 | BW27: 0.0000000 | CU27: 0.0000000
A28: 熊东 | B28: 2022310218 | BW28: 0.0000000 | CU28: 0.0000000
A29: 赵飞龙 | B29: 2022310224 | BW29: 0.0000000 | CU29: 0.0000000
A30: 吴昊峰 | B30: 2022310227 | E30: Temperature-controlled self-assembly of Ce-based tubular boron carbon nitride for enhanced tetracyclines adsorption | F30: 是 | G30: Wu Haofeng, Zhendong Yu, Xiaoxiao Yu, Linhua Zhu, Yanhong Chao, Minmeng Tang, Haiyan Liu, Zhichang Liu, Wenshuai Zhu | H30: Frontiers of Environmental Science & Engineering | I30: JCR | J30: 二区 | K30: 15.0000000 | L30: Boron nitride modified CuZn-calcinated layered double hydroxides as efficient adsorbents for tetracycline removal | M30: 否 | N30: Tao Zheng, Haofeng Wu, Zhuo Han, Lianyun Chen, Baichuan Tang, Peng Cui, Haiyan Liu, Yanhong Chao, Wenshuai Zhu, Zhichang Liu | O30: Separation and Purification Technology | P30: JCR | Q30: 一区（发表时） | R30: 2.7777777 | BW30: 17.7777777 | BX30: 第四届全国能源与环境科技学术会议 | BY30: 口头 | BZ30: 氧化吸附耦合资源化回收加氢柴油中二苯并噻吩类硫化物 | CA30: 全国 | CU30: 17.7777777
A31: 刘璐 | B31: 2022310230 | BW31: 0.0000000 | CU31: 0.0000000
A32: 陈靖 | B32: 2022310231 | BW32: 0.0000000 | CU32: 0.0000000
A33: 夏添 | B33: 2022310233 | BW33: 0.0000000 | BX33: The 21st International Zeolite Conference | BY33: 海报 | BZ33: Study on the morphology and catalytic properties of Y-type zeolites | CA33: 国际 | CU33: 0.0000000
A34: 李晓涵 | B34: 2022310232 | BW34: 0.0000000 | CU34: 0.0000000
A35: 谢浩东 | B35: 2022310244 | E35: Enhanced production of lactic acid via glycerol selective oxidation over K-doped Pt/Sn-MFI catalysts | F35: 是 | G35: Haodong Xie, Haobin Wei, Zunlong Hu, Sida Ge, Yingshuo Guo, Pengfei Guo, Meng Wu, Xicheng Jia, Jiazhou Li, Tianliang Lu, Yuming Zhang, Wenhao Luo, Zhijie Wu | H35: Chemical Engineering Journal | I35: JCR | J35: 1 | K35: 25.0000000 | L35: Synthesis and consequence of three-dimensionally ordered macroporous Beta zeolite supported NiW catalyst for efficient hydrocracking of 1-methylnaphthalene to BTX | M35: 否 | N35: Zunlong Hu, Tongtong Wu, Haodong Xie, Yanting Zhang, Sida Ge, Zhijie Wu | O35: Chemical Engineering Journal | P35: JCR | Q35: 1.0000000 | R35: 5.0000000 | BW35: 30.0000000 | BX35: The 21st International Zeolite Conference | BY35: 口头 | BZ35: Boosting catalytic performance for selective oxidation of glycerol on a low-Pt-content Pt-In/Sn-MFI catalys | CA35: 国际 | CB35: 3 | CC35: 3 | CU35: 33.0000000
A36: 于春晖 | B36: 2022310249 | E36: Titanium carbide-functionalized cobalt selenide as a heterogeneous electro-Fenton cathode catalyst for the degradation of sulfamerazine | F36: 是 | G36: Yu C, Wang K, Fan Y, et al. | H36: Frontiers of Materials Science | I36: Frontiers of Materials Science | J36: 4 | K36: 5（10/2=5） | L36: Generating singlet oxygen via one-electron oxygen reduction by cobalt oxide composite N, P doped carbon material for degradation of sulfamerazine | M36: 是 | N36: Li L1, Yu C1, Yang F, | O36: Separation and Purification Technology | P36: Separation and Purification Technology | Q36: 2 | R36: 7.5（15/2=7.5） | S36: Simultaneous accelerating H2O2 generation and activation via construction of CuS/NiS2 heterostructures in heterogeneous electro-Fenton for sulfamerazine degradation[ | T36: 是 | U36: Wang C, Yu C1, Ma Y | V36: Journal of Environmental Chemical Engineering | W36: JCR | X36: 2区 | Y36: 7.5（15/2=7.5） | Z36: Synergistically modulating the d-band center of Ni3Se2 via Ce and Fe co-doping for efficient degradation of florfenicol in heterogeneous electro-Fenton process | AA36: 是 | AB36: Yu C1, Sun X, Yang F, et al | AC36: Separation and Purification Technology | AD36: JCR | AE36: 2区 | AF36: 15（30/2=15） | AG36: Anionic regulation Fe/NiOOH electrocatalysts to boost electrooxidation performance of biomass derived 5-hydroxymethylfurfural | AH36: 否 | AI36: Junpu An 1 , Hongchen Liu 1 , Fan Yang 1 , Kexin Wei 1 , Chunhui Yu 1 , Siyuan Sun 1 , Yang Sun 1 , Qing Guo 1 , Jianfeng Wang 1 , Chenlin Wang 1 , Jiahui Liu 1 , Kuobo Wang 1 , Yongfeng Li 1 | AJ36: Journal of Colloid and Interface Science | AK36: JCR | AL36: 1区 | AM36: 2.0800000 | AN36: Construction of MnX (X= P, O, S) nanoparticles embedded in porous carbon/graphene nanocomposite fibers as efficient bifunctional oxygen electrocatalyst for Zn–air batteries | AO36: 否 | AP36: Siyuan Sun 1 , Xiaoyun Zhang 1 , Yang Sun 1 , Fan Yang 1 , Tianyu Bai 1 , Cunhui Yu 1 , Kexin Wei 1 , Haojia Zhong 1 , Qiang Wei 1 , Yongfeng Li 1 | AQ36: Journal of Colloid and Interface Science | AR36: JCR | AS36: 1区 | AT36: 2.7700000 | AU36: ailoring Oxygen Electrocatalytic Performance via Construction of Iron‐Cobalt Oxides and FeN4 Sites on Hierarchical Carbon Fibers for Efficient Zinc–Air Batteries. | AV36: 否 | AW36: Kexin Wei 1 , Fan Yang 1 , Yang Sun 1 , Chunhui Yu 1 , Junpu An 1 , Guang Ma 1 , Yongfeng Li 1 | AX36: Advanced Functional Materials | AY36: JCR | AZ36: 1区 | BA36: 4.1600000 | BW36: 44.0100000 | CE36: 复合降粘剂及其制备方法和应用 | CF36: 国家发明专利 | CG36: 否、否 | CH36: 否 | CI36: 杨帆,孙衍鹍,于春晖,李永峰 | CJ36: 授权 | CK36: CN 117304909 B | CL36: ZL 2023 1 1166525.8 | CM36: 2.5 | CU36: 46.5100000
A37: 张浩楠 | B37: 2022310250 | E37: Synergistic Ru-Co atomic pair with enhanced activity toward levulinic acid hydrogenation | F37: 是 | G37: Haonan Zhang , Yuhang Sun , Shuo Wang , Qiyuan Wang, Yuxiang Shang , Sungsik Lee, Liqiang Zhang , Lei Deng, Ying Yang | H37: Journal of Colloid and Interface Science | I37: JCR | J37: 1 | K37: 25.0000000 | L37: 纤维素催化转化制乙酰丙酸研究进展 | M37: 是 | N37: 张浩楠， 李晨，王硕， 王祺元， 李恒， 杨英 | O37: 化学研究 | P37: 中文科技核心期刊 | Q37: - | R37: 0.5（1/2=0.5） | S37: Tunable built-in electric field of homologous heterojunction regulated by nitrogen doped carbon to enhance water splitting | T37: 否 | U37: Daorui Wang , Shuo Wang , Haonan Zhang , Chenmeng Cui , Shijie Hao , Ping Qiu , Lirong Zheng , Ying Yang | V37: Nano Research | W37: JCR | X37: 1区 | Y37: 3.5710000 | BW37: 29.0710000 | CU37: 29.0710000
A38: 陈霖 | B38: 2022310201 | BW38: 0.0000000 | CU38: 0.0000000
A39: 刘莎莎 | B39: 2022310202 | BW39: 0.0000000 | CU39: 0.0000000
A40: 张瑞 | B40: 2022310203 | BW40: 0.0000000 | CU40: 0.0000000
A41: 张世源 | B41: 2022310219 | BW41: 0.0000000 | CU41: 0.0000000
A42: 姜梁妍 | B42: 2022310239 | BW42: 0.0000000 | BX42: 16th China-Japan-Korea (CJK) Forum 第16届中日韩研究生论坛 | BY42: 口头 | BZ42: The influence of iron-based catalysts on substance conversion during hydrothermal carbonization process | CA42: 国际会议 | CB42: 1 | CC42: 1 | CU42: 1.0000000
A43: 刘申宁 | B43: 2022310242 | BW43: 0.0000000 | CU43: 0.0000000
A44: 杨若宸 | B44: 2022310253 | BW44: 0.0000000 | CU44: 0.0000000
A45: 蔡进 | B45: 2022310204 | E45: Phase equilibria of gas hydrates: A review of experiments, modeling, and potential trends | F45: 是 | G45: Jin Cai , Han Tang, Teng-Hua Zhang, Peng Xiao, Yi-Wei Wu, Hai-Hang Qin, Guang-Jin Chen, Chang-Yu Sun*, Xiao-Hui Wang* | H45: Rnewable and Sustainable Energy Reviews | I45: JCR | J45: 中科院1区 | K45: 25 | L45: A method to reduce the plugging risk in application of ZIF-8 slurry for energy conservative carbon capture | M45: 否 | N45: Han Tang, Jin Cai, Hai-Hang Qin, Zi-Ying Zhao, Kun Li, Chang-Ping Tang, Peng Xiao, Bei Liu, Chang-Yu Sun, Guang-Jin Chen | O45: Separation and Purification Technology | P45: JCR | Q45: 投稿当年中科院2区 | R45: 1.6667 | S45: Study on the desalination efficiency of hydrate phase by a pressure-driven filtration method | T45: 否 | U45: Yiwei Wu, Zhenbin Xu, Xiaohui Wang, Jin Cai, Tenghua Zhang, Peng Xiao, Changyu Sun, Guangjin Chen | V45: Chinese Journal of Chemical Engineering | W45: JCR | X45: 中科院3区 | Y45: 1.0714 | BW45: 27.7381000 | BX45: 第十二届世界化学工程大会 | BY45: 口头 | BZ45: Development and application of software for prediction on gas hydrate phase equilibria | CA45: 国际 | CD45: 会议未提供支撑材料 | CE45: Mesh-shaped porous CO2-capturing solution and separation method for CO2 gas | CF45: 国际 | CG45: 否 | CH45: 否 | CI45: CHEN, Guangjin, TANG, Han, XIAO, Peng, SUN, Changyu, ZHAO, Ziying, LI, Qun, CAI, Jin, LI, Guodong, QIN, Haihang | CJ45: 否 | CK45: WO 2025/103343A1 | CL45: PCT/CN2024/131701 | CM45: 0.9375 | CN45: 30÷2÷2÷8=0.9375 | CU45: 28.6756000
A46: 陈欢 | B46: 2022310205 | BW46: 0.0000000 | CU46: 0.0000000
A47: 王明龙 | B47: 2022310221 | E47: Kinetics and morphology study of hydrate formation from CO2-H2O emulsion in glass beads | F47: 是 | G47: Ming-Long Wang, Yi-Fei Sun, Hong-Nan Chen, Jin-Rong Zhong, Dan Rao, Yu Liu, De-Jun Xuan, Bei Liu, Chang-Yu Sun, Guang-Jin Chen | H47: Chemical Engineering Journal | I47: JCR | J47: 中科院1区 | K47: 25.0000000 | L47: A new approach to high conversion CO2 hydrate sequestration by CO2/ water emulsion injection into marine sediments | M47: 是 | N47: Ming-Long Wang, Yi-Fei Sun, Hong-Nan Chen, Jin-Rong Zhong, Liang-Liang Ren, Ming Wang, Dan Rao, Yong-Quan Liu, Yi-Bo Hao, Bei Liu, Chang-Yu Sun, Guang-Jin Chen | O47: Chemical Engineering Journal | P47: JCR | Q47: 中科院1区 | R47: 25.0000000 | S47: Dual-objective enhancement of CO2 injection and hydrate conversion for CO2 solid sequestration in submarine sediments via penicillin G sodium solution pre-injection | T47: 是 | U47: Ming-Long Wang, Yi-Fei Sun , Hong-Nan Chen, Jin-Rong Zhong, Dan Rao, Yu Liu, De-Jun Xuan, Bei Liu, Chang-Yu Sun, Guang-Jin Chen | V47: Energy | W47: JCR | X47: 中科院1区 | Y47: 25.0000000 | Z47: Enhanced hydrate formation at the liquid CO2-brine interface with shear flow for solid CO2 sequestration | AA47: 是 | AB47: Ming-Long Wang, Yi-Fei Sun, Wei-Xin Pang, Qing-Ping Li, Ting Huang, Hong-Nan Chen, Ming Wang, Jin-Rong Zhong, Liang-Liang Ren, Dan Rao, Bei Liu, Chang-Yu Sun a, Guang-Jin Chen | AC47: Gas Science and Engineering | AD47: JCR | AE47: 2.0000000 | AF47: 不在2024-2025学年内 | AG47: Influence of volume ratio of liquid CO2 to seawater on CO2 hydrate sequestration in submarine sediments | AH47: 是 | AI47: Ming-Long Wang, Ming Wang, Yi-Fei Sun, Hong-Nan Chen, Dan Rao, Jin-Rong Zhong, Bei Liu, Chang-Yu Sun, Guang-Jin Chen | AJ47: Chinese Journal of Chemical Engineering | AK47: JCR | AL47: 3.0000000 | AM47: 7.5000000 | AN47: Self-adaptive gas flow and phase change behaviors during hydrate exploitation by alternate injection of N2 and CO2 | AO47: 否 | AP47: Bo-Jian Cao, Yi-Fei Sun, Hong-Nan Chen, Jin-Rong Zhong, Ming-Long Wang, Ming Wang, Chang-Yu Sun, Guang-Jin Chen | AQ47: Petroleum Science | AR47: JCR | AS47: 1.0000000 | AT47: 不在2024-2025学年内 | AU47: Quantitative evaluation of hydrate-based CO2 storage in unsealed marine sediments: Viewpoint from the driving force of hydrate formation and CO2-water contact ability | AV47: 否 | AW47: Hong-Nan Chen, Yi-Fei Sun, Wei-Xin Pang, Ming-Long Wang, Ming Wang, Jin-Rong Zhong, Liang-Liang Ren, Bo-Jian Cao, Dan Rao, Chang-Yu Sun, Guang-Jin Chen | AX47: Fuel | AY47: JCR | AZ47: 1(投稿时1区) | BA47: 不在2024-2025学年内 | BB47: Enhanced gas production and CO2 storage in hydrate-bearing sediments via pre-depressurization and rapid CO2 injection | BC47: 否 | BD47: Hongnan Chen, Yifei Sun, Bojian Cao, Minglong Wang, Ming Wang, Jinrong Zhong, Changyu Sun, Guangjin Chen | BE47: Chinese Journal of Chemical Engineering | BF47: JCR | BG47: 3.0000000 | BH47: 不在2024-2025学年内 | BW47: 82.5000000 | BX47: 1、2024二氧化碳捕集、利用与封存(CCUS)国际会议；2、首届地球能源前沿论坛 | BY47: 口头 | BZ47: 1、 new approach to high conversion CO? hydrate sequestration by CO2/water emulsion injection into marine sediments；2、液态CO2与海水静态接触和剪切流动接 触下水合物形成形态及动力学研究 | CA47: 1、国际；2、全国 | CD47: 两次会议为2023-2024学年会议，不在此次加分时间内 | CE47: 1、一种二氧化碳自乳化强化地质封存的方法；2、一种评价海底二氧化碳水合物稳定性的方法及系统 | CF47: 国家 | CG47: 否 | CH47: 否 | CI47: 1、孙漪霏、王明龙、刘蓓、陈光进、陈弘男、王明；2、孙漪霏、陈光进、孙长宇、陈弘男、王明龙 | CJ47: 否 | CK47: 1、CN 116696473 A;2、CN 118746520 A | CL47: 1、202310888314.9；2、202410784380.6 | CM47: 0.9375 | CN47: 第一个专利不在2024-2025学年范围内，因此删去第一项加分。 | CU47: 83.4375000
A48: 卜禹豪 | B48: 2022310236 | BW48: 0.0000000 | CU48: 0.0000000
A49: 李建 | B49: 2022310222 | E49: Diffusion-dependent strategy for decoupling mass transfer and reaction in propane dehydrogenation kinetics | F49: 是 | G49: Jian Li, Qi Liu, Shuangzhu Kong, Shanlei Han, Feng Cheng, Yuming Li, Mengxi Liu, Guiyuan Jiang, Chunxi Lu, Chunming Xu | H49: Chemical Engineering Science | I49: JCR | J49: 中科院2区 | K49: 仅提供接收函，无DOI未见刊 | L49: A new transient nonuniformity index for the feed injection zone of a multiphase fluidized bed reactor | M49: 否 | N49: Shuangzhu Kong, Min Cai, Jian Li, Feng Cheng, Chunxi Lu, Mengxi Liu, Chaowei Liu, Zhifeng Wang, Kaijun Hou | O49: Particuology | P49: JCR | Q49: 中科院2区 | R49: 1.8750000 | S49: 二元颗粒在气固流化床内流动、混合特性的数值模拟(I)： 轴向/径向流场分布特性 | T49: 否 | U49: 王贵方， 孔双祝， 李 建， 姚秀颖， 范怡平， 卢春喜 | V49: 过程工程学报 | W49: 中文核心 | Y49: 0.1000000 | Z49: 二元颗粒在气固流化床内流动、混合特性的数值模拟(II)：流场径向分布特性的力学分析 | AA49: 否 | AB49: 王贵方， 孔双祝， 李 建， 姚秀颖， 范怡平， 卢春喜 | AC49: 过程工程学报 | AD49: 中文核心 | AF49: 0.1000000 | AG49: 甲烷氧化偶联反应在流化床反应器内的流动-反应行为及过程强化 | AH49: 否 | AI49: 常 明 ， 蔡 敏 ，李 建 ，刘梦溪 ，卢春喜 ，姜桂元 ，张 鹏 | AJ49: 化学反应工程与工艺 | AK49: 中文核心 | AM49: 0.0833333 | BW49: 2.1583300 | BX49: WCCE12-第十二届世界化工大会 | BY49: 口头 | BZ49: ZnOx/Silicalite-1 catalyst in PDH: Transient kinetics with external diffusion effects | CA49: 国际 | CB49: 3 | CC49: 3 | CE49: 1、丙烷催化脱氢流化床反应-再生耦合装置及丙烷催化脱氢工艺方法；2、移动床-流化床反应再生耦合装置及其使用方法 | CF49: 1、国家；2、国家 | CG49: 1、否；2、是 | CH49: 1、否；2、否 | CI49: 1、刘梦溪、卢春喜、徐春明、姜桂元、李建；2、李建、刘梦溪、徐春明、卢春喜、刘启、姜桂元、孔双祝 | CJ49: 1、是；2、否 | CK49: 1、CN 115253934B；2、CN 120169262 A | CL49: 1、202210841189.1；2、202510230684.2 | CM49: 3.75 | CN49: 第一个专利是2022-2023年的，当时已经加过，因此删去第一项加分。 | CU49: 8.9083300
A50: 南睿 | B50: 2022310225 | BW50: 0.0000000 | CU50: 0.0000000
A51: 司道润 | B51: 2022310226 | BW51: 0.0000000 | BX51: 第二届未来颗粒前沿论坛 | BY51: 口头 | BZ51: 有效缩短流化床反应器稀相空间油剂接触时间的轴流旋分器分离特性研究 | CA51: 全国 | CD51: 学院定级未加分 | CU51: 0.0000000
A52: 高宁晗 | B52: 2022310206 | E52: Rigorous modelling and optimization of hybrid absorption-adsorption separation process of H2/CH4 using ZIF-8/glycol/water slurry | H52: 第一篇之前已经加过 | L52: Hybrid membrane/adsorption separation of hydrogen-blended natural gas at receiving terminal: Process modelling and multi-objective optimization | M52: 是 | N52: Ninghan Gao, Xiao Mao, Nan Nan | O52: Separation and Purification Technology | P52: JCR | Q52: 投稿当年中科院1区 | R52: 25.0000000 | S52: Rigorous modelling and multi-objective optimization for hybrid absorption-adsorption separation process of CH4/C2H6 using ZIF-8/iso-hexadecane slurry | T52: 是 | U52: Ninghan Gao, Ruihang Zhang, Ziying Zhao, et al | V52: Green Chemical Engineering | W52: JCR | X52: 中科院2区 | Y52: 15.0000000 | Z52: Economic evaluation of hybrid ZIF-8-based membranes and distillation process for propylene/propane separation | AA52: 否 | AB52: Haiqian Lian a , Mingliang Jiang a , Changchao Zhou a , Ninghan Gao b , Eryue Song a, Chongqing Wang a , Chun Deng b , Yichang Pan a,* , Weihong Xing | AC52: Separation and Purification Technology | AD52: JCR | AE52: 投稿当年中科院2区 | AF52: 1.8750000 | BW52: 41.8750000 | CU52: 41.8750000
A53: 余望 | B53: 2022310254 | E53: Molecular composition of water soluble fraction of petroleum products and crude oils: Insights into groundwater contamination potential and environmental forensics | F53: 是 | G53: Wang Yu, Yuruo Wan, Wei Zhou, Jiayi An, Liting Tian, Jie Ma | H53: Journal of Environmental Sciences | I53: JCR | J53: 中科院2区 | K53: 15.0000000 | L53: Fingerprinting complex mixed oil spills at refineries: Source identification, quantitative source apportionment, and biodegradation assessment | M53: 是 | N53: Wang Yu, Jiayi An, Jiuhao Song, Junjie Guan, Keyu Duan, Wei Zhou, Liting Tian, Jie Ma | O53: Water Research | P53: JCR | Q53: 中科院1区 | R53: 25.0000000 | BW53: 40.0000000 | CU53: 40.0000000
A54: 聂林春 | B54: 2022310255 | E54: Rapid visual detection of glutathione in vegetables and distinguishing multiple sulfur-containing compounds by smartphone-assisted sensor based on calcined PPy@CuNi-ZIF-67 nanozyme with enhanced oxidase-like activity | F54: 是 | G54: Linchun Nie, Jiazhi Xia, Jiawei Liao, Na Liu, Meiling Xu, Dejing Meng, Wenjing Liu, Qingxiang Zhou, Chunmao Chen | H54: Food Chemistry | I54: JCR | J54: 1 | K54: 25.0000000 | L54: Sensitive measurement of polycyclic aromatic hydrocarbons based on strong enrichment from magnetic covalent organic framework before high performance liquid chromatography analysis | M54: 否 | N54: Guangyu Dong, Liushan Jiang, Linchun Nie, Jiawei Liao, Xiaodie Geng, Wenjing Liu, Dejing Meng, Meiling Xu, Na Liu, Qingxiang Zhou, Chunmao Chen | O54: Journal of Environmental Chemical Engineering | P54: JCR | Q54: 2.0000000 | R54: 1.5000000 | S54: Smartphone-assisted visual detection of lincomycin hydrochloride based on Cu-BDC@Ag2O with enhanced oxidase-like activity and laccase-like activity | T54: 否 | U54: Dejing Meng, Linchun Nie, Wenjing Liu, Rui Yang, Haobo Yang, Junlong Li, Ranhao Zhao, Shaojie Su, Qingxiang Zhou | V54: Chemical Engineering Science | W54: JCR | X54: 2.0000000 | Y54: =15/8 -> 1.8750000 | Z54: Construction of an ion-imprinted ratiometric fluorescence sensor integrating zirconium-based metal-organic framework and carbon dots for sensitive detection of copper ion | AA54: 否 | AB54: Lutong Bu 1, Linchun Nie 1, Jiawei Liao 1, Dejing Meng 1, Wenjing Liu 1, Rui Yang 1, Yongli Liu 2, Na Liu 1, Qingxiang Zhou | AC54: Journal of Environmental Sciences | AD54: JCR | AE54: 2.0000000 | AF54: =15/8 -> 1.8750000 | AG54: Smartphone-assisted array sensor constructed with Cu, Ni doped ZIF-67 nanozyme for specific identification of sulfur-containing compounds and detection of thioglycolic acid | AH54: 否 | AI54: Guojin Tang, Linchun Nie, Shuai Yuan, Liushan Jiang, Jiawei Liao, Na Liu, Dejing Meng, Wenjing Liu, Qingxiang Zhou | AJ54: Microchemical Journal | AK54: JCR | AL54: 2.0000000 | AM54: =15/8 -> 1.8750000 | BW54: =BV54+BO54+BH54+BA54+AT54+AM54+AF54+Y54+R54+K54 -> 32.1250000 | CO54: 中华环保联合会自然科学奖 | CP54: 中华环保联合会 | CQ54: 国家级 | CR54: 二等奖 | CS54: 周庆祥，李双莹，姜刘杉，刘永丽，聂林春，李智，步路通，李艳晖，李靖，武亚林 | CT54: =4/9 -> 0.4444444444 | CU54: 32.5694444
A55: 高照 | B55: 2022315201 | E55: 石油加工分子管理平台热力学及分离单元模块开发 | F55: 是 | G55: 高照，吴熙，夏丹，张霖宙 | H55: 化工学报 | I55: EI | K55: 1.5000000 | L55: Experiment and molecular-level kinetic modeling study of catalytic pyrolysis of heavy oil to light olefin | M55: 否 | N55: Falu Dang, Zhao Gao, Zhiguo Sun, Zhengyu Chen, Jingcun Lian, Yupei Liu, Meijia Liu, Zhongdong Zhang, Chaowei Liu, Linzhou Zhang ,*, Gang Wang,* | O55: Fuel | P55: 中科院 | Q55: 1.0000000 | R55: 2.5000000 | S55: Molecular-Level Modeling of Naphtha Continuous Catalytic Reforming Process | T55: 否 | U55: Jian Wu, Guoxing Chen, Aiqing Chen, Zhao Gao, Xi Wu, Haiyang Cheng, Yifei Li, Yongchun Wang, Zhiming Qian, Xiaosong Zhang, Chunming Xu, Zhengyu Chen,*Linzhou Zhang,* | V55: Chemical Engineering Science | W55: 中科院 | X55: 2.0000000 | Y55: 1.2500000 | Z55: 原油一步法催化裂解制低碳烯烃：实验和反应路径研究 | AA55: 否 | AB55: 党法璐，孙志国，高照，王刚，陈政宇，张霖宙，连竞存，刘美佳，张忠东，刘超伟 | AC55: 化工学报 | AD55: EI | AF55: 0.1666667 | BW55: 5.4166667 | BX55: 1.2024年重质油全国重点实验室学术与文化交流会；2.第四届全国过程模拟与仿真学术会议；3.2024国家工业软件大会；4.2025年SESC-PSE过程系统工程年会 | BY55: 墙报/口头/口头/口头 | BZ55: 石油加工分子管理平台热力学及分离单元模块开发 | CA55: 全国 | CB55: 1；0；0；1 | CC55: 1.25 | CD55: 墙报按照分档的1/4加分 | CU55: 6.6666667
A56: 陈子康 | B56: 2022315202 | E56: Hexane cracking: improving ethylene yield and zeolite stability by hydrothermal urea modification of HZSM-5 | F56: 是 | G56: Zikang Chen, Qi Liu, Peng Xiao, Zhangming Li, Yanjun Gong | H56: Energy & Fuels | I56: 中科院 | J56: 3 | K56: 7.5000000 | L56: Rational design of hierarchical porous structure of ZSM-22 for boosting high-efficiency selective hydrogenation of oleic acid to jet fuel | M56: 否 | N56: Zhentao Liu , Jinlin Mei , Xiaoyang Kong , Zikang Chen , Dong Li , Haidong Li , Chunya Wang , Yanjun Gong , Chunming Xu , Xilong Wang | O56: Chemical Engineering Journal | P56: 中科院 | Q56: 1.0000000 | R56: 2.7777800 | BW56: 10.2777800 | CU56: 10.2777800
A57: 安思莹 | B57: 2022315203 | BW57: 0.0000000 | CU57: 0.0000000
A58: 蒋乾民 | B58: 2022315204 | BW58: 0.0000000 | CU58: 0.0000000
A59: 冯龙 | B59: 2022315205 | E59: HowDotheMorphologyandCrystalFacetofCeO2 DeterminetheCatalyticActivitytowardNORemoval? | F59: 否 | G59: WeibinChen,LongFeng,BingbingMa,XuanZhang,RuiqinZhong,*andRuqiangZou* | H59: small | I59: 中科院 | J59: 2 | K59: 3.0000000 | L59: “One-Stone, Two-Birds”: Zinc-Rich Metal–Organic Frameworks as Precursors for High-Entropy Zn-Air Battery Electrocatalysts with Hierarchical Pore Structures | M59: 否 | N59: Jianwen Su, Yinji Wan, Long Feng, Dingding Huang, Hsing Kai Chu, Xuan Zhang, Xiaoye Geng, Yonggang Wang,* Ruiqin Zhong,* and Ruqiang Zou* | O59: ANGEWANDTE CHEMIE-INTERNATIONAL EDITION | P59: 中科院 | Q59: 1.0000000 | R59: 2.7777800 | S59: Designer topological-single-atom catalysts with site-specific selectivity | T59: 否 | U59: Weibin Chen,MenghuiBao,FanqiMeng,Bingbing Ma, Long Feng, Xuan Zhang,ZanlinQiu, Song Gao, Ruiqin Zhong,ShiboX,XiaoHai Jiong Lu RuqiangZou | V59: NATURE COMMUNICATIONS | W59: 中科院 | X59: 1.0000000 | Y59: 2.2700000 | BW59: 8.0477800 | CU59: 8.0477800
A60: 邹义儒 | B60: 2022315207 | E60: Rapid, selectivity, and reversibility absorption of SO2 via purine-based deep eutectic solvents and thermodynamic analysis | F60: 是 | G60: Yiru Zou, Chao Wang, Haiyan Ji, Peiwen Wu, Yanhong Chao, Xiaoxiao Yu, Zhendong Yu, Haiyan Liu, Zhichang Liu, Wenshuai Zhu | H60: Green Chemical Engineering | I60: 中科院 | J60: 2 | K60: 15.0000000 | L60: Enhancing electrochemical lithium extraction from salt lake by promoting lithium ions transport on LiMn2O4 surfaces with borate oxides | M60: 否 | N60: Xiang Li, Guiling Luo, Jun Gu, Yiru Zou, Minmeng Tang, Jiangtao Yu, Li Zhang, Linlin Chen, Yanhong Chao, Wenshuai Zhu | O60: Separation and Purification Technology | P60: 中科院 | Q60: 2.0000000 | R60: =15/9 -> 1.6666667 | BW60: 16.6666667 | CE60: 1.磷钼蓝反应型萃取剂及其制备方法和应用；2.钒钨酸基界面催化剂及其在油浆催化氧化脱硫中的应用 | CF60: 均为国家发明专利 | CG60: 否、否 | CH60: 是、否 | CI60: 1.朱文帅; 邹义儒; 邢肖肖; 吴沛文; 吴昊峰; 巢艳红；2. 巢艳红; 邢肖肖; 朱文帅; 邹义儒; 俞镇东; 于笑笑; 唐旻萌 | CJ60: 否、否 | CK60: 1.CN120025848A；2.CN120459968A | CL60: 1.CN202510135976.8；2.CN202510366672.2 | CM60: =3.75+0.75 -> 4.5 | CU60: 21.1666667
A61: 褚俊杰 | B61: 2022315206 | E61: Ionic liquids Regulating Interfacial Nanobubble Dynamic Behaviors during Hydrogen Evolution Reaction | F61: 是 | G61: Junjie Chu,∥ Zongxu Wang,∥ Zixin Li, Guilin Li, Yawei Liu, Haifeng Dong, Yinge Bai, Lu Bai,* and Xiangping Zhang* | H61: ACS Sustainable Chemistry & Engineering | I61: 中科院 | J61: 1 | K61: 25.0000000 | L61: 电催化反应电极界面纳微气泡多尺度研究进展 | M61: 是 | N61: 褚俊杰1†, 王宗旭2†, 白璐2*, 刘亚伟2, 董海峰2,3, 冯佳奇1, 张香平 | O61: 中国科学: 化学 | P61: 北大核心 | R61: 0.5000000 | BW61: 25.5000000 | BX61: 第十三届中国颗粒大会/ 中国石油大学(北京)第十四届研究生学术论坛 | BY61: 墙报/口头 | BZ61: 电解水体系纳微气泡形成及演化行为研究 离子液体调控电解水制氢过程界面纳米气泡动力学行为 | CB61: 1; 0 | CC61: 0.25 | CD61: 墙报按照分档的1/4加分 | CU61: 25.7500000
A62: 李蕊 | B62: 2022315208 | BW62: 0.0000000 | BX62: The 21st International Zeolite Conference | BY62: 海报 | BZ62: Research on the Preparation of Phosphorus-containing High Stability Y-Type Zeolite by SiCl4 Vapor Treatment Method | CA62: 国际 | CB62: 3 | CC62: 0.75 | CD62: 墙报按照分档的1/4加分 | CU62: 0.7500000
A63: 许振彬 | B63: 2022315209 | E63: Study on the removal efficiency of hydrate blockage by injection ethylene glycol in vertical pipeline | F63: 是 | G63: Zhen-Bin Xu , Xiao-Hui Wang * , Yi-Wei Wu , Yu-Hao Bu , Yu-Zhou Chen , Ling-Ban Wang , Hong-Shuai Wang , Chang-Yu Sun , Guang-Jin Chen | H63: Chemical Engineering Science | I63: 中科院 | J63: 2 | K63: 15.0000000 | L63: Study on the desalination efficiency of hydrate phase by a pressure-driven filtration method | M63: 共1 | N63: Yi-Wei Wu, Zhen-Bin Xu, Xiao-Hui Wang, Jin Cai, Teng-Hua Zhang, Peng Xiao, Chang-Yu Sun, Guang-Jin Chen | O63: Chinese Journal of Chemical Engineering | P63: 中科院 | Q63: 3.0000000 | R63: 3.7500000 | S63: Effect of upper seawater infiltration on submarine natural gas hydrate exploitation: using a pilot-scale fan-column simulator | T63: 否 | U63: Ling-Ban Wang, Yi-Fei Sun, Yu-Hao Bu, Zhen-Bin Xu, Xian Sun, Han-Feng Shao, Chang-Yu Sun, Guang-Jin Chen | V63: chemical engineering journal | W63: 中科院 | X63: 1.0000000 | Y63: 3.5714286 | Z63: CO2 Solubility in Aqueous Solution in a Hydrate−Liquid Two-Phase Equilibrium System | AA63: 否 | AB63: Xiao-Hui Wang,* Yi-Wei Wu, Zhen-Bin Xu, Teng-Hua Zhang, Le Zhao, Hong-Shuai Wang, Li-Yong Bao, Chang-Yu Sun, and Guang-Jin Chen | AC63: Industrial & engineering chemistry research | AD63: 中科院 | AE63: 3.0000000 | AF63: 0.9375000 | AG63: Study on the gas composition of hydrate phase and unreacted liquid phase for hydrate-based gas separation | AH63: 否 | AI63: Xiao-Hui Wang *, Teng-Hua Zhang , Zhen-Bin Xu , Yi-Wei Wu , Chang-Yu Sun , Guang-Jin Chen | AJ63: Journal of Environmental Chemical Engineering | AK63: 中科院 | AL63: 2.0000000 | AM63: 3.0000000 | AN63: 大尺度扇柱形反应釜内甲烷水合物降压开采规律研究 | AO63: 否 | AP63: 王令颁，孙漪霏，卜禹豪，许振彬，孙贤，邵瀚锋，孙长宇，陈光进 | AQ63: 化工学报 | AR63: EI | AS63: EI | AT63: 0.2142800 | AU63: Experimental study of effective thermal conductivity of methane hydrate-bearing sediments in gas-rich and water-rich systems | AV63: 否 | AW63: Cunning Wang , Xingxun Li , Yang Ge , Weixin Pang , Qingping Li , Zhenbin Xu , Guangjin Chen , Changyu Sun | AX63: Fuel(投稿时1区) | AY63: 中科院 | AZ63: 2.0000000 | BA63: 3.5714280 | BW63: 30.0446366 | CE63: 1.交替注入相变材料和相变乳液开采天然气和碳封存的方法； 2.一种非均质天然气水合物开采模拟装置及强化开采方法； | CF63: 均为国家发明专利 | CG63: 否、否 | CH63: 是、是 | CI63: 1.孙长宇;许振彬;王令颁;卜禹豪;王晓辉;陈光进。 2. 孙漪霏;许振彬;陈光进;孙长宇;王令颁 | CJ63: 是 | CK63: 1，ZL 2024 1 1489796.1 2.ZL 2024 1 0360595.5 | CM63: 15 | CU63: 45.0446366
A64: 孔倩 | B64: 2022315210 | E64: F-Doped CoFe Bimetallic Heterostructure Electrocatalyst with Ultra-Low Impedance for High-Current-Density Alkaline Hydrogen Evolution | F64: 是 | G64: Qian Kong, Chengcheng Yu, Qing Lu, Xingyu Yang, Tongguang Xu, Qi Song, Huatong Li, Zhaoshuo Yuan, Hongyu Liu, Qian Qiao, Gang He, Yufan Wang, Linglong Yao, Xiaoping Dai, and Xin Zhang* | H64: Small | I64: 中科院 | J64: 2 | K64: 15.0000000 | L64: Doping La into NiFe LDH/NiS heterostructure achieving high-current-density oxygen evolution for anion exchange membrane water electrolysis | M64: 否 | N64: Qi Song , Kaili Li , Zhengxin Cao , Yang Mi , Qian Kong , Gang He , Hongyu liu , Qian Qiao , Linglong Yao , Yufan Wang , Xiaoping Dai , Xin Zhang | O64: Chemical Engineering Journal | P64: 中科院 | Q64: 1.0000000 | R64: 2.7777778 | S64: In situ inducing CoFe LDH to nanosheet arrays as efficient superaerophobic electrocatalysts for anion exchange membrane water electrolysis | T64: 否 | U64: Qi Song , Tongguang Xu , Chengxu Tu , Kaili Li , Qian Kong , Gang He , Linglong Yao , Yufan Wang , Hongyu Liu , Tao Wan , Xiaoping Dai , Xin Zhang | V64: Nano Research | W64: 中科院 | X64: 1.0000000 | Y64: 2.2727273 | Z64: Novel large-scale integrated non-precious metal electrodes for efficient and stable oxygen evolution reaction at high current density in 2.5 kW anion exchange membrane water electrolysis | AA64: 否 | AB64: Yujie Liu , Qi Song , Tongguang Xu , Qian Kong , Gang He , Haixiao Sun , Huatong Li , Zhaoshuo Yuan , Xinyu Ma , Xiangyu Su , Xiao ping Dai , Qiugen Zhang , Zhen Xing Li , YueChang Wei , Xin Zhang | AC64: Applied Catalysis B: Environment and Energy | AD64: 中科院 | AE64: 1.0000000 | AF64: 1.7857143 | AG64: Poly(terphenyl-diphenylmethane piperidinium) anion exchange membranes assemble with non-precious metal electrodes for high-performance water electrolysis | AH64: 否 | AI64: Zhaoshuo Yuan1#, Yujie Liu2, Huatong Li 1, Qian Kong 1, Haixiao Sun1, Qian Qiao1, Xuelian Zhang 1, Hongyu Liu1, Yi Tan1, Qingyue Ge 1, Tongguang Xu3, Xiaoping Dai 1, Xin Zhang 1* | AJ64: SCIENCE CHINA Materials | AK64: JCR | AL64: 1.0000000 | AM64: 2.0833333 | BW64: 23.9195527 | BX64: 第五届国际能源化学与工程大会 | BY64: 海报 | BZ64: Ultra-Low Impedance F-CoFe Heterostructure: Powering High-Current Alkaline HER | CA64: 国际 | CD64: 未在学院统计表格内无法赋分 | CE64: 一种大电流密度下AEMWE阴极电极材料及其宏量制备方法、应用 | CF64: 国家 | CG64: 否 | CH64: 是 | CI64: 张鑫;孔倩;徐春明 | CJ64: 是 | CK64: CN 118480811 B | CL64: ZL 2024 1 0592510.6 | CM64: 7.5 | CN64: 去年公开今年授权 | CU64: 31.4195527
A65: 蒋郑峰 | B65: 2022315211 | BW65: 0.0000000 | CU65: 0.0000000
A66: 杨昌泽 | B66: 2022315212 | BW66: 0.0000000 | BX66: 第二十一届微波能应用学术年会 | BY66: 论文摘要 | BZ66: 微波辅助原位催化热解废塑料耦合双金属异位催化重整制氢及碳纳米管 | CA66: 全国 | CB66: 1 | CC66: 0.25 | CD66: 墙报按照分档的1/4加分 | CE66: 一种钛基加氢催化剂及其制备方法和应用 | CF66: 国家发明专利 | CG66: 否 | CH66: 是 | CI66: 商辉，杨昌泽，丁禹 | CJ66: 是 | CK66: CN 116422345 B | CL66: ZL 2023 1 0561038.5 | CM66: 7.5 | CU66: =CT66+CM66+CC66+BW66 -> 7.7500000

Sheet 文体加分
A1: 文体加分汇总
A3: 学号 | B3: 姓名 | C3: 文艺活动加分 | H3: 体育项目加分 | M3: 总计
C4: 项目一 | D4: 加分 | E4: 项目二 | F4: 加分 | G4: 合计 | H4: 项目一 | I4: 加分 | J4: 项目二 | K4: 加分 | L4: 合计
A5: 2022310207 | B5: 孔肖阳
A6: 2022310209 | B6: 邹予桐
A7: 2022310215 | B7: 冯仕杰
A8: 2022310223 | B8: 殷梦凡
A9: 2022310229 | B9: 薛其州
A10: 2022310234 | B10: 李硕凡
A11: 2022310235 | B11: 谢泽睿
A12: 2022310245 | B12: 曹越
A13: 2022310246 | B13: 李鹏飞
A14: 2022310247 | B14: 孙冬
A15: 2022310248 | B15: 修浩
A16: 2022310208 | B16: 李东泽
A17: 2022310212 | B17: 黄可儿
A18: 2022310213 | B18: 吕明珠
A19: 2022310214 | B19: 包若凝
A20: 2022310220 | B20: 柳楠
A21: 2022310228 | B21: 徐伟杰 | H21: 首都高等学校第二十届越野攀登比赛第二名 | I21: 13.3 | J21: 首都高等学校第4届马拉松接力赛第二名 | K21: 2.7 | M21: 16
A22: 2022310240 | B22: 王鑫 | C22: 2024校园网球公开赛女子单打第四名 | D22: 7 | M22: 7
A23: 2022310241 | B23: 许关欣
A24: 2022310237 | B24: 李之辉
A25: 2022310238 | B25: 刘玉佩
A26: 2022310243 | B26: 黄萌
A27: 2022310251 | B27: 陈冬冬
A28: 2022310210 | B28: 郑蓉蓉
A29: 2022310211 | B29: 于洋
A30: 2022310216 | B30: 王智远
A31: 2022310217 | B31: 李瑞
A32: 2022310218 | B32: 熊东
A33: 2022310224 | B33: 赵飞龙
A34: 2022310227 | B34: 吴昊峰
A35: 2022310230 | B35: 刘璐
A36: 2022310231 | B36: 陈靖
A37: 2022310233 | B37: 夏添
A38: 2022310232 | B38: 李晓涵
A39: 2022310244 | B39: 谢浩东
A40: 2022310249 | B40: 于春晖
A41: 2022310250 | B41: 张浩楠
A42: 2022310201 | B42: 陈霖
A43: 2022310202 | B43: 刘莎莎
A44: 2022310203 | B44: 张瑞
A45: 2022310219 | B45: 张世源
A46: 2022310239 | B46: 姜梁妍
A47: 2022310242 | B47: 刘申宁
A48: 2022310253 | B48: 杨若宸
A49: 2022310204 | B49: 蔡进
A50: 2022310205 | B50: 陈欢
A51: 2022310221 | B51: 王明龙
A52: 2022310236 | B52: 卜禹豪
A53: 2022310222 | B53: 李建
A54: 2022310225 | B54: 南睿
A55: 2022310226 | B55: 司道润
A56: 2022310206 | B56: 高宁晗
A57: 2022310254 | B57: 余望
A58: 2022310255 | B58: 聂林春
A59: 2022315201 | B59: 高照
A60: 2022315202 | B60: 陈子康
A61: 2022315203 | B61: 安思莹
A62: 2022315204 | B62: 蒋乾民
A63: 2022315205 | B63: 冯龙
A64: 2022315207 | B64: 邹义儒
A65: 2022315206 | B65: 褚俊杰
A66: 2022315208 | B66: 李蕊
A67: 2022315209 | B67: 许振彬
A68: 2022315210 | B68: 孔倩
A69: 2022315211 | B69: 蒋郑峰
A70: 2022315212 | B70: 杨昌泽
